Cogmind - Beta 15 @@@ ROGUE MODE // 2025.08.12 @ 20:30:19 Player: Cog on my mind Result: Escaped! Performance ------------- Evolutions (9) 4500 Regions Visited (31) 6200 Robots Destroyed (371) 1855 Value Destroyed (21948) 21948 Prototype IDs (86) 1720 Alien Tech Used (0) 0 Bonus (21377) 21377 TOTAL SCORE: 57600 Bonus ------- High Alert Combat Kills 3372 Follower Combat Kills 8132 Entered Garrisons 1400 Used RIF Installer 4500 Met R17 at Cetus 500 Hacked Protovariant 500 Win 3000 Friendly Fire -27 Cogmind --------- Core Integrity 1428/1600 Matter 121/300 Energy 548/770 System Corruption 7% Temperature Warm (189) Movement Flying (33) Location To Epsilon Eridani Parts ------- > --- POWER (2) -------- Light Antimatter Reactor Improved Fusion Compressor > --- PROPULSION (10) -- Impulse Thruster Array Impulse Thruster Array Impulse Thruster Array (fused) Impulse Thruster Array Impulse Thruster Array > --- UTILITY (10) ----- Advanced Power Amplifier Advanced Power Amplifier Advanced Coolant Injector Large Storage Unit Experimental Energy Well Experimental Optical Array Advanced Sensor Array Advanced Signal Interpreter Advanced Shield Generator Advanced Hacking Suite > --- WEAPON (3) ------- Improved Potential Cannon Plasma Sword > --- INVENTORY (15) --- Light Quantum Reactor Field Propulsion Drive Experimental Energy Well (202) Experimental Matter Compressor (233) Quantum Shading Machine Improved Particle Accelerator SHELL Armor Hellfire Missile Launcher Hellfire Missile Launcher Peak State ------------ > --- POWER ------------ Light Antimatter Reactor Improved Fusion Compressor > --- PROPULSION ------- Impulse Thruster Array Impulse Thruster Array Impulse Thruster Array Impulse Thruster Array Impulse Thruster Array > --- UTILITY ---------- Advanced Power Amplifier Advanced Power Amplifier Advanced Coolant Injector Large Storage Unit Experimental Energy Well Experimental Optical Array Advanced Sensor Array Advanced Signal Interpreter Advanced Shield Generator Advanced Hacking Suite > --- WEAPON ----------- Improved Potential Cannon Plasma Sword > --- INVENTORY -------- Light Quantum Reactor Field Propulsion Drive Impulse Thruster Array Experimental Energy Well Experimental Matter Compressor Quantum Shading Machine Improved Particle Accelerator Quantum Capacitor SHELL Armor Hellfire Missile Launcher Hellfire Missile Launcher [Rating: 200] Favorites ----------- Power F-cell Engine Engine F-cell Engine Power Core Enhanced Nuclear Core Reactor Quantum Reactor Propulsion Compact Wheel Treads Light Treads Leg Improved Carbon-fiber Leg Wheel Compact Wheel Hover Unit Improved Antigrav System Flight Unit Impulse Thruster Array Utility Relay Coupler [NC] Device Seismic Detector Storage Large Storage Unit Processor Experimental Optical Array Hackware Relay Coupler [NC] Protection Hardened Heavy Armor Plating Weapon Remote Datajack Energy Gun Advanced Variable Charge Gun Energy Cannon Cooled Plasma Cannon Ballistic Gun Subdweller Machine Gun Ballistic Cannon Heavy Mass Driver Launcher Micro-nuke Launcher Special Weapon Remote Datajack Impact Weapon Power Maul Slashing Weapon Chainsword Piercing Weapon Plasma Lance Special Melee Weapon Advanced Datajack Build | -11 -10 -10 -8 -8 -7 -7 -7 -7 -7 -7 -6 -6 -6 -6 -5 -5 -5 -5 -4 -4 -4 -4 -4 -4 -4 -4 -4 -3 -3 -2 -1 ------- Run | Yrd Mat Sub Mat Gar Fac Was Fac Gar Fac Gar Fac Gar Fac Gar Fac Was Fac Gar Fac Was Fac Gar Fac Ext Cet Arc Hub Res Tes Res Acc Slots Evolved 18 | . . . 4 . 2 . . . . . 2 . . . 2 . . . 2 . . . . . . . . 2 . 2 2 Power 1 | . . . . . . . . . . . . . . . . . . . . . . . . . . . . 1 . . . Propulsion 8 | . . . 2 . . . . . . . . . . . . . . . 2 . . . . . . . . . . 2 2 Utility 8 | . . . 2 . 2 . . . . . 2 . . . 2 . . . . . . . . . . . . . . . . Weapon 1 | . . . . . . . . . . . . . . . . . . . . . . . . . . . . 1 . . . Parts Attached 394 | 7 6 19 29 4 13 . 9 18 8 20 10 14 5 16 14 1 11 12 12 1 17 15 28 8 10 8 5 18 27 10 19 Power 24 | 1 . 1 1 1 1 . . . . 1 1 . . 1 . . . 1 1 . . 3 2 1 1 . . 2 1 1 3 Engine 6 | 1 . 1 1 . . . . . . 1 1 . . 1 . . . . . . . . . . . . . . . . . Core 7 | . . . . 1 1 . . . . . . . . . . . . 1 1 . . . 1 . . . . 1 . . 1 Reactor 11 | . . . . . . . . . . . . . . . . . . . . . . 3 1 1 1 . . 1 1 1 2 Propulsion 126 | 2 2 5 11 . 3 . 5 3 7 2 1 3 4 4 6 . 2 2 3 . 8 4 15 1 4 . . 7 13 5 4 Treads 28 | 2 2 2 9 . 2 . 1 . 2 . . 3 . 1 . . . . . . . . . . 4 . . . . . . Leg 13 | . . . . . . . 4 3 . . . . . . . . . . . . 2 4 . . . . . . . . . Wheel 46 | . . 3 2 . . . . . 5 2 1 . 4 3 6 . 2 2 3 . 5 . 8 . . . . . . . . Hover 20 | . . . . . 1 . . . . . . . . . . . . . . . 1 . 7 1 . . . . 9 1 . Flight 19 | . . . . . . . . . . . . . . . . . . . . . . . . . . . . 7 4 4 4 Utility 176 | 2 2 4 10 1 5 . 3 12 1 12 6 9 1 10 6 1 8 7 6 1 7 8 11 5 3 6 4 5 10 3 7 Device 52 | 1 . 2 4 . . . . 2 . . 2 . . . 3 . 3 1 2 . 1 3 4 1 2 5 . 4 6 1 5 Storage 8 | 1 1 . 1 . . . . . . 1 . . . . . . . . . . 1 . 1 . . . . . 1 1 . Processor 10 | . . . 1 . . . . . . . 1 . . . 1 . . . . . 3 . . . . . . 1 1 1 1 Hackware 77 | . . . 1 1 3 . 3 8 1 11 2 9 . 10 2 1 4 6 4 . 1 2 3 1 . . 3 . . . 1 Protection 29 | . 1 2 3 . 2 . . 2 . . 1 . 1 . . . 1 . . 1 1 3 3 3 1 1 1 . 2 . . Artifact . | . . . . . . . . . . . . . . . . . . . . . . . . . . . . . . . . Weapon 68 | 2 2 9 7 2 4 . 1 3 . 5 2 2 . 1 2 . 1 2 2 . 2 . . 1 2 2 1 4 3 1 5 Energy Gun 9 | 1 1 1 1 . 2 . . . . 1 . . . . . . . . . . . . . . 1 1 . . . . . Energy Cannon 10 | . . 1 3 . . . . . . . 2 . . . . . . 2 . . . . . . . . . . 1 1 . Ballistic Gun 13 | 1 1 5 2 . . . . . . 2 . . . . . . . . . . . . . . 1 1 . . . . . Ballistic Cannon 7 | . . . 1 1 1 . . 1 . 2 . . . . . . . . . . . . . . . . . 1 . . . Launcher 6 | . . . . . 1 . . 1 . . . . . . . . . . 1 . . . . . . . . . 1 . 2 Special Weapon 10 | . . 1 . 1 . . . 1 . . . 1 . 1 1 . 1 . . . 1 . . . . . 1 1 . . . Impact Weapon 1 | . . . . . . . . . . . . 1 . . . . . . . . . . . . . . . . . . . Slashing Weapon 7 | . . 1 . . . . 1 . . . . . . . . . . . . . . . . 1 . . . . 1 . 3 Piercing Weapon 4 | . . . . . . . . . . . . . . . 1 . . . . . 1 . . . . . . 2 . . . Special Melee Weapon 1 | . . . . . . . . . . . . . . . . . . . 1 . . . . . . . . . . . . Unidentified Prototypes 35 | . . . 1 . 5 . . . . . 2 . . . . . . 1 . 1 2 3 . . 3 . . 4 12 . 1 Parts Lost 89 | . 2 2 1 2 . . . . . 3 . 4 . 3 2 . 2 4 3 . 10 14 13 4 2 . 1 1 5 7 4 Power 11 | . . . . 1 . . . . . 1 . . . . . . . 1 1 . . 3 1 . . . . . . 2 1 Propulsion 36 | . . 1 . . . . . . . 1 . 3 . 2 2 . 1 2 1 . 4 6 6 1 1 . . . 2 2 1 Utility 29 | . 1 . 1 1 . . . . . . . . . . . . 1 . 1 . 5 5 5 2 . . 1 1 1 2 2 Weapon 13 | . 1 1 . . . . . . . 1 . 1 . 1 . . . 1 . . 1 . 1 1 1 . . . 2 1 . Highest Loss Streak 8 | . 1 1 1 2 . . . . . 2 . 2 . 1 1 . 1 1 2 . 7 7 8 1 1 . 1 1 3 5 1 To Critical Strikes . | . . . . . . . . . . . . . . . . . . . . . . . . . . . . . . . . Average Backups 15 | 1 6 5 11 14 14 14 14 14 13 19 23 24 24 22 22 22 21 21 21 20 21 23 21 12 14 13 12 12 11 8 10 Power . | . 1 . . . 1 1 1 1 . . 1 1 1 . . 1 1 1 . . . . 1 1 1 1 1 1 . . . Propulsion 1 | . . . . . . 1 2 2 1 2 2 1 . . . . . 1 1 3 5 7 5 . . 1 1 2 1 . 2 Utility 10 | . 2 2 7 10 9 9 7 8 10 13 17 19 19 19 18 17 14 15 14 13 12 12 12 10 10 7 6 5 7 7 6 Weapon 2 | . 1 2 2 3 2 2 2 2 1 2 2 2 2 2 2 2 3 2 2 3 2 1 1 1 2 3 3 2 1 . 1 Tool/Special . | . . . . . . . . . . . . . . . . . . . . . . . . . . . . . . . . Unused Backups 68 | . . 6 4 15 1 . 1 5 3 . 2 5 1 1 . . . 1 1 . . . 2 2 4 1 . 2 5 . 6 Power 9 | . . 2 . . . . . . 1 . 1 . . . . . . . . . . . 1 . 2 . . . 1 . 1 Propulsion 9 | . . 1 1 . . . 1 . 1 . . 1 . . . . . . . . . . . . . . . . 2 . 2 Utility 38 | . . 2 2 13 . . . 3 . . . 4 1 1 . . . 1 . . . . 1 2 2 1 . 1 1 . 3 Weapon 8 | . . 1 1 2 . . . 1 1 . 1 . . . . . . . . . . . . . . . . . 1 . . Tool/Special 4 | . . . . . 1 . . 1 . . . . . . . . . . 1 . . . . . . . . 1 . . . Average Slot Usage (%) 90 | . 99 88 96 99 99 100 99 98 91 94 98 97 98 95 86 90 93 83 84 84 76 72 83 99 89 81 78 80 84 71 73 Engine 4 | . 14 14 9 1 . . . . . 1 6 6 6 6 5 5 5 1 . . . . . . . . . . . . . Core 2 | . . . . 7 7 7 7 6 6 5 . . . . . . . 3 5 5 5 . 1 . . . . . . . 2 Reactor 1 | . . . . . . . . . . . . . . . . . . . . . . 4 3 5 5 5 5 4 4 7 4 Treads 12 | . 28 22 29 36 30 30 17 . 9 8 3 20 19 . . . . . . . . . . . 5 15 15 4 . . . Leg 2 | . . . . . . . 12 29 2 . . . . . . . . . . . . 14 1 . . . . . . . . Wheel 7 | . . 4 6 . . . . . 12 19 21 5 6 25 21 23 21 14 21 21 18 4 12 . . . . . . . . Hover 1 | . . . . . . . . . . . . . . . . . . . . . . . 7 31 17 . . . 7 14 . Flight 1 | . . . . . . . . . . . . . . . . . . . . . . . . . . . . 18 16 1 19 Device 6 | . 12 1 11 10 7 . 5 1 4 . 4 1 2 2 4 5 1 4 5 4 4 3 13 18 16 15 5 10 18 16 15 Storage 6 | . 14 4 9 9 7 7 7 6 6 6 6 6 6 6 5 5 5 5 5 5 5 5 5 5 5 5 5 4 4 4 8 Processor 1 | . . . 1 . . . . . . . . . . . . . . . . . 2 5 5 5 5 5 5 6 8 12 7 Hackware 19 | . . . . 7 15 23 25 28 21 26 27 41 40 37 29 31 39 35 30 31 26 19 19 17 21 20 25 21 14 8 7 Protection 6 | . 1 11 11 8 14 15 6 5 6 6 9 1 1 2 5 5 5 3 5 5 5 4 2 4 2 2 5 1 . . . Energy Cannon 2 | . . 5 6 8 . . . . . . 2 2 4 6 5 5 1 2 4 5 2 . . . . . . . . 3 3 Ballistic Gun 3 | . 18 21 7 . . . . . . 2 . . . . . . . . . . . . . . 2 1 2 . . . . Ballistic Cannon 1 | . . . . 9 6 7 4 . 6 8 9 . . . . . . . . . . . . . . . . 1 . . . Special Weapon 3 | . . . . . 7 7 7 6 6 6 6 5 5 4 4 4 4 2 5 5 1 4 1 . . . . . 3 . . Peak Build Rating 200 | 7 8 18 33 37 48 48 49 64 64 60 68 65 67 68 68 67 76 84 97 100 107 108 127 128 145 145 139 144 155 155 200 Average Rating 65 | 4 7 13 24 34 42 48 47 49 55 55 65 57 61 54 65 64 67 78 91 95 85 90 95 124 126 139 134 128 137 131 187 On Entrance 74 | . 7 7 16 31 36 48 48 47 64 55 60 67 62 56 54 61 67 73 82 95 96 88 108 126 122 145 139 137 123 121 129 Naked Turns . | . . . . . . . . . . . . . . . . . . . . . . . . . . . . . . . . Heaviest Build 134 | 15 22 35 44 44 48 48 48 58 59 115 126 116 123 128 133 128 128 132 134 121 124 120 117 55 63 74 74 69 67 80 79 Greatest Support 240 | 40 40 40 86 86 98 98 106 72 66 36 50 100 100 52 58 58 64 60 80 80 80 76 96 71 240 240 240 240 78 92 80 Greatest Overweight (x) 37 | . . 1 1 . . . 1 . 2 5 3 9 6 3 4 2 2 4 2 1 11 10 37 . 1 . . . 1 1 1 Average Overweight (x) . | . . . . . . . . . 1 2 2 . 1 1 2 2 1 1 1 1 1 2 1 . . . . . . . . Largest Inventory Capacity 25 | 8 10 10 15 15 15 15 15 15 15 25 25 25 25 25 25 25 25 25 25 25 25 25 25 15 15 15 15 15 15 15 15 Average Capacity 17 | 6 9 6 12 15 15 15 15 15 15 23 25 25 25 25 25 25 25 25 25 25 25 25 22 15 15 15 15 15 15 15 15 Most Carried 25 | 2 10 10 15 15 15 15 15 15 15 25 25 25 25 25 25 25 25 25 25 23 24 25 25 15 15 15 15 15 15 15 15 Average Carried 16 | 1 6 6 12 14 14 14 14 14 13 19 23 24 24 24 24 24 23 23 23 22 22 24 21 14 14 14 13 13 14 12 14 Final Capacity 25 | 8 10 10 15 15 15 15 15 15 15 25 25 25 25 25 25 25 25 25 25 25 25 25 15 15 15 15 15 15 15 15 15 Final Carried 25 | 2 9 10 15 15 14 15 15 15 13 25 25 25 25 25 25 25 23 24 22 23 24 25 15 14 15 15 12 15 15 14 11 Class Distribution -------------------- 42% | Botlord-Mutant 13% | Mutant 11% | Bothacker-Mutant 8% | Subdweller-Mutant 7% | Bothacker-Gunner 7% | Scavenger-Mutant Dominant Class ---------------- Mutant | -10/Materials Subdweller-Mutant | -10/Subcaves Scavenger-Mutant | -8/Materials Mutant | -8/Garrison Bothacker-Mutant | -7/Factory Bothacker-Mutant | -7/Waste Bothacker-Mutant | -7/Factory Bothacker-Mutant | -7/Garrison Bothacker-Gunner | -7/Factory Bothacker-Gunner | -7/Garrison Botlord-Tank | -6/Factory Botlord-Mutant | -6/Garrison Botlord-Mutant | -6/Factory Botlord-Mutant | -6/Garrison Botlord-Mutant | -5/Factory Botlord-Mutant | -5/Waste Botlord-Mutant | -5/Factory Botlord-Mutant | -5/Garrison Botlord-Mutant | -4/Factory Botlord-Mutant | -4/Waste Botlord-Mutant | -4/Factory Botlord-Mutant | -4/Garrison Botlord-Mutant | -4/Factory Botlord-Mutant | -4/Extension Botlord-Mutant | -4/Cetus Botlord-Mutant | -4/Archives Scavenger-Mutant | -4/Hub_04(d) Hacker-Sprinter | -3/Research Sprinter | -3/Testing Scout | -2/Research Sprinter | -1/Access Resources | -11 -10 -10 -8 -8 -7 -7 -7 -7 -7 -7 -6 -6 -6 -6 -5 -5 -5 -5 -4 -4 -4 -4 -4 -4 -4 -4 -4 -3 -3 -2 -1 ----------- Run | Yrd Mat Sub Mat Gar Fac Was Fac Gar Fac Gar Fac Gar Fac Gar Fac Was Fac Gar Fac Was Fac Gar Fac Ext Cet Arc Hub Res Tes Res Acc Matter Collected 13357 | 282 440 506 588 313 377 . 300 371 337 1502 285 559 125 550 363 70 462 438 616 . 411 536 949 172 304 398 214 281 988 60 560 Remotely . | . . . . . . . . . . . . . . . . . . . . . . . . . . . . . . . . Salvage Created 16185 | 126 692 571 1032 541 279 . 318 407 553 658 178 315 341 798 604 . 264 883 390 . 1107 377 829 859 55 663 382 274 752 307 1630 Parts 807 | 8 39 39 64 30 15 . 15 19 25 28 13 15 13 37 22 . 19 16 25 . 85 14 26 32 1 41 28 15 48 9 66 Haulers Intercepted 12 | . 2 . 3 . . . . . . . . . . . . . . . . . 2 . 2 . . . . 1 . . 2 Recyclers Shooed 19 | 1 3 . 5 . 1 . . . . . 1 . 2 . 2 . 1 . 2 . 1 . . . . . . . . . . Parts Field Recycled . | . . . . . . . . . . . . . . . . . . . . . . . . . . . . . . . . Retrieved Matter . | . . . . . . . . . . . . . . . . . . . . . . . . . . . . . . . . Parts Self-Destructed 17 | . . 17 . . . . . . . . . . . . . . . . . . . . . . . . . . . . . Prevented . | . . . . . . . . . . . . . . . . . . . . . . . . . . . . . . . . Kills | -11 -10 -10 -8 -8 -7 -7 -7 -7 -7 -7 -6 -6 -6 -6 -5 -5 -5 -5 -4 -4 -4 -4 -4 -4 -4 -4 -4 -3 -3 -2 -1 ------- Run | Yrd Mat Sub Mat Gar Fac Was Fac Gar Fac Gar Fac Gar Fac Gar Fac Was Fac Gar Fac Was Fac Gar Fac Ext Cet Arc Hub Res Tes Res Acc Combat Hostiles Destroyed 289 | . 12 16 17 21 4 . 1 11 7 24 3 8 1 15 6 . 2 31 7 . 21 15 4 6 1 4 6 2 6 4 34 Melee 41 | . . . . . . . . 8 . . . 1 . . . . 2 3 . . 8 2 3 6 . . . 2 6 . . Guns 40 | . 12 8 8 . . . . . . 1 . . . . . . . . . . . . . . 1 4 6 . . . . Cannons 105 | . . 8 9 21 4 . 1 . 3 16 3 3 1 4 4 . . 7 2 . . 2 . . . . . . . 3 14 AOE 97 | . . . . . . . . 3 4 7 . 3 . 9 1 . . 20 4 . 13 11 1 . . . . . . 1 20 Classes Destroyed 23 | 2 5 1 4 1 . . . . . 2 . 1 . 1 2 . . 1 . . . 1 . . . . . . 1 . 1 Worker 20 | . 1 . 2 . . . 1 . 4 . . . 1 . 2 . . . 1 . 5 . . . . . . . 1 . 2 Builder 13 | . . . . . . . . . . . . . . . 1 . 1 . 1 . 3 . . . . . 2 1 2 . 2 Tunneler 6 | 2 . . . . . . . . 1 . 1 . . . . . . . . . 1 . . . . . . 1 . . . Hauler 12 | . 2 . 3 . . . . . . . . . . . . . . . . . 2 . 2 . . . . 1 . . 2 Recycler 28 | 1 2 . 1 . 2 . 3 . 3 . 1 . 2 . 2 . 1 . 1 . 1 . 3 2 . . . . 1 1 1 Operator 14 | . . . 1 . . . . . . . . . . . . . 1 . 1 . . . . . . 9 . . 1 1 . Drone 2 | . . . . . . . . . . . . . . . . . . . . . . . . . . . . . . . 2 Watcher 10 | . 1 . 1 . 2 . 1 . . . . . . . 1 . . . . . . . . 1 . . . . 2 . 1 Swarmer 85 | . 3 4 4 9 . . . 3 4 7 1 6 . 8 1 . . . 4 . 13 7 . 1 . . . . 1 . 9 Cutter 8 | . . . . . . . . . . . . . . 2 . . . . . . . 4 . . . . 2 . . . . Saboteur 1 | . . . . . . . . . . . . . . . 1 . . . . . . . . . . . . . . . . Grunt 65 | . 9 . 5 6 1 . . 7 2 5 . 1 1 2 3 . 1 4 2 . . 3 2 2 . . 1 . . . 8 Brawler 5 | . . . . . . . . . . 4 . . . . . . . 1 . . . . . . . . . . . . . Duelist 6 | . . . 1 3 . . . . . 2 . . . . . . . . . . . . . . . . . . . . . Researcher 2 | . . . . . . . . . . . . . . . . . . . . . . . . . . . . . 2 . . Sentry 27 | . . . 5 . . . . . . 2 . . . . . . . 2 . . . 1 1 2 . 4 2 . . 2 6 Specialist 2 | . . . . . . . . . . . . 1 . . . . . . . . . . . . . . 1 . . . . Hunter 12 | . . . 2 . . . . . 1 . . . . . . . . . . . . . . . . . . 2 1 2 4 Programmer 39 | . . . . 3 3 . 1 1 . 3 2 . . 4 1 . 1 . 1 . 8 . 1 . . . . . 4 . 6 Behemoth 1 | . . . . . . . . . . 1 . . . . . . . . . . . . . . . . . . . . . Cetus Guard 1 | . . . . . . . . . . . . . . . . . . . . . . . . . 1 . . . . . . Striker 1 | . . . . . . . . . . . . . . . . . . . . . . 1 . . . . . . . . . Subdweller 12 | . . 12 . . . . . . . . . . . . . . . . . . . . . . . . . . . . . Assembled 24 | . . . . . . . . . . . . . . . . . . 24 . . . . . . . . . . . . . Thug 1 | . . . . . . . . . . . . . . . . . . . . . . . . 1 . . . . . . . Best Kill Streak 20 | 3 4 4 4 4 2 . 1 3 4 6 4 3 2 4 2 . 1 20 6 . 6 6 3 2 1 3 5 2 2 4 5 Combat Bots Only 20 | . 3 4 4 4 2 . 1 3 2 6 2 3 1 4 1 . 1 20 4 . 5 6 2 2 1 1 3 2 1 2 5 Max Kills in Single Turn 6 | 1 1 1 2 2 1 . 1 3 4 3 2 2 1 3 2 . 1 4 3 . 5 6 1 1 1 1 2 1 1 2 5 Gunslinging . | . . . . . . . . . . . . . . . . . . . . . . . . . . . . . . . . Exploded 5 | . . . . . . . . 3 2 3 . 2 . 2 1 . . 4 2 . 5 5 1 . . . . . . 1 4 Melee 1 | . . . . . . . . 1 . . . 1 . . . . 1 1 . . 1 1 1 1 . . . 1 1 . . Uniques/NPCs Destroyed . | . . . . . . . . . . . . . . . . . . . . . . . . . . . . . . . . Combat | -11 -10 -10 -8 -8 -7 -7 -7 -7 -7 -7 -6 -6 -6 -6 -5 -5 -5 -5 -4 -4 -4 -4 -4 -4 -4 -4 -4 -3 -3 -2 -1 -------- Run | Yrd Mat Sub Mat Gar Fac Was Fac Gar Fac Gar Fac Gar Fac Gar Fac Was Fac Gar Fac Was Fac Gar Fac Ext Cet Arc Hub Res Tes Res Acc Hostile Shots Fired 1822 | . 79 65 80 98 18 . 43 69 26 134 12 81 5 49 67 . 36 74 58 . 118 113 47 39 11 34 95 51 129 74 117 Missed 621 | . 13 19 23 27 7 . 18 14 8 43 2 27 2 22 21 . 9 24 21 . 29 30 15 13 5 11 18 29 69 40 62 Intercepted 6 | . . . . . . . . . . . . . . . . . . . . . . . 6 . . . . . . . . Hits 1201 | . 66 46 57 71 11 . 25 55 18 91 10 54 3 27 46 . 27 50 37 . 89 83 32 26 6 23 77 22 60 34 55 Melee 53 | . . . . 7 . . . . . 1 . . . . 1 . . 8 . . . 28 . . . . 7 . 1 . . Projectile 1148 | . 66 46 57 64 11 . 25 55 18 90 10 54 3 27 45 . 27 42 37 . 89 55 32 26 6 23 70 22 59 34 55 AOE 20 | . . 4 . . . . . . . . . 3 . 5 1 . 1 3 . . . . 3 . . . . . . . . Critical Strikes 77 | . . 1 3 2 . . . 1 . 4 . 2 . . 5 . 2 4 2 . 12 11 3 2 1 . 8 . 7 2 5 Part Disruptions 4 | . . . . . . . . . . . . 1 . . . . 1 . . . 1 . . . . . . . 1 . . Damage Taken 23229 | . 706 1047 676 895 137 . 177 752 342 1194 119 896 56 655 712 109 674 1228 746 . 2014 2613 1172 683 170 599 1425 393 1137 767 1135 Core 2721 | . 131 82 130 86 . . 22 94 14 264 15 103 . 53 29 . 14 111 67 . 154 357 298 94 26 24 76 83 197 25 172 Absorbed by Shields 1094 | . . . 148 72 . . . . . . . . . 34 265 44 50 14 327 . . . . 32 . . . . . . 108 Reduced by Siege Mode 215 | . . . . . . . . . . . . . . . . . . . . . . . . . . 82 133 . . . . Ignored by Resistances 37 | . . . . . 27 . 10 . . . . . . . . . . . . . . . . . . . . . . . . Regen/Repaired (Parts) 2046 | . . . . . . . . . . . . 276 . . . 306 440 519 461 . . . 44 . . . . . . . . Core Remaining (%) 64 | 100 . 14 . 60 . . . . . 43 . . . 79 . . . 84 . . . . . . . . 4 . 78 98 89 Volleys Fired 1239 | 4 78 88 77 87 55 . 8 26 18 126 20 41 18 79 69 7 41 71 64 11 8 26 15 1 19 68 45 1 . 13 55 Largest 3 | 2 2 2 2 2 1 . 1 1 1 2 2 2 2 2 1 1 1 1 1 1 1 1 1 1 2 2 2 3 . 1 2 Hottest 215 | 70 70 110 126 105 40 . 40 39 65 94 94 210 70 105 39 35 35 94 105 35 49 94 49 49 115 160 160 215 . 200 200 Shots Fired 1677 | 8 145 152 147 141 55 . 9 26 20 148 30 45 26 97 69 7 43 73 66 12 10 26 16 1 34 126 71 3 . 13 58 Gun 599 | 8 145 113 94 . . . . . . 9 . . . . . . . . . . . . . . 34 126 68 2 . . . Cannon 710 | . . 27 53 141 46 . 4 . 8 104 21 16 21 72 30 1 9 46 31 7 3 7 . . . . . 1 . 13 49 Launcher 64 | . . . . . . . . 1 2 3 . 5 . 7 2 . . 14 2 . 3 7 8 1 . . . . . . 9 Special 304 | . . 12 . . 9 . 5 25 10 32 9 24 5 18 37 6 34 13 33 5 4 12 8 . . . 3 . . . . Kinetic 607 | 4 92 109 84 57 46 . 4 . 8 112 20 . . . . . . . . . . . . . 18 44 8 1 . . . Thermal 692 | 4 53 43 56 84 . . . . . 1 1 16 21 72 30 1 9 41 31 7 3 . . . 16 82 60 2 . 10 49 Explosive 64 | . . . . . . . . 1 2 3 . 5 . 7 2 . . 14 2 . 3 7 8 1 . . . . . . 9 Electromagnetic 22 | . . . 7 . . . . . . . . . . . . . . 5 . . . 7 . . . . . . . 3 . Robot Hit Streak 21 | 6 12 16 12 13 10 . 2 9 6 13 6 8 8 9 8 14 9 8 19 5 6 7 8 . 5 19 21 6 . 5 13 Robot Miss Streak 8 | . 3 4 3 6 2 . 1 3 2 4 2 3 1 4 7 . 4 3 2 1 2 2 3 . 8 4 1 . . 1 3 Penetration Max 1 | . . . . . . . . . . . 1 . . . . . . . . . . . . . . 1 . . . . . Secondary Targets 2 | . 1 . . . . . . . . . . . . . . . . . . . . . . . . . 1 . . . . Max Gunslinging Chain 1 | . 1 . . . . . . . . . . . . . . . . . . . . . . . . . 1 . . . . Capacitor 47 | . . . . . . . . . . . . . . . 3 . . 44 . . . . . . . . . . . . . Shots Hit Robots 1250 | 6 98 77 97 66 30 . 12 34 27 98 17 29 18 52 46 6 36 79 46 5 42 35 28 56 16 80 34 11 27 8 34 Core Hits 550 | 4 35 26 39 30 5 . 3 11 13 38 5 14 6 28 19 . 6 58 19 . 37 22 13 11 5 32 13 6 11 5 36 Critical Kills 8 | . . 1 . . . . . . . . . 1 . 2 . . . 1 . . . . . . . 1 2 . . . . Critical Parts Destroyed 4 | . . . . . . . . . . . . . . . . . . . . . . . . . 3 1 . . . . . Critical Strikes 64 | . 2 3 . 4 3 . 1 2 1 11 . 1 . 2 . . 1 2 . . 5 2 3 4 3 5 2 3 4 . . Burn 2 | . 2 . . . . . . . . . . . . . . . . . . . . . . . . . . . . . . Meltdown 3 | . . . . . . . . . . . . . . 2 . . . 1 . . . . . . . . . . . . . Destroy 13 | . . 3 . . . . . . . . . . . . . . . . . . . . . . 3 5 2 . . . . Blast 20 | . . . . 4 3 . 1 . 1 11 . . . . . . . . . . . . . . . . . . . . . Corrupt 1 | . . . . . . . . . . . . . . . . . . . . . . 1 . . . . . . . . . Smash 1 | . . . . . . . . . . . . 1 . . . . . . . . . . . . . . . . . . . Sever 7 | . . . . . . . . 2 . . . . . . . . . . . . . . . 3 . . . . 2 . . Impale 17 | . . . . . . . . . . . . . . . . . 1 1 . . 5 1 3 1 . . . 3 2 . . Melee Attacks 405 | . . 1 . . . . 7 40 21 . . 13 . 2 1 . 18 50 . . 49 35 21 70 1 . . 16 53 . 7 Impact 15 | . . . . . . . . . . . . 13 . 2 . . . . . . . . . . . . . . . . . Slashing 135 | . . 1 . . . . 7 40 21 . . . . . . . . . . . . . . 11 . . . . 48 . 7 Piercing 207 | . . . . . . . . . . . . . . . 1 . 18 50 . . 49 35 18 15 . . . 16 5 . . Sneak Attacks 106 | . . . . . . . 6 6 10 . . . . . 1 . 7 1 . . 14 . 12 36 . . . 4 7 . 2 Combat Hostiles 22 | . . . . . . . . 4 1 . . . . . . . 2 1 . . . . 4 7 . . . 2 1 . . Follow-up Attacks . | . . . . . . . . . . . . . . . . . . . . . . . . . . . . . . . . Damage Inflicted 52026 | 74 1291 1693 1778 1664 761 . 544 1060 1556 4308 460 887 455 2231 988 . 825 4134 1196 . 3421 2234 1416 1273 405 2216 848 895 2464 1500 9449 Guns 7230 | 74 1291 1163 997 . . . . . . 175 . . . . . . . . . . . . . . 405 2216 848 61 . . . Cannons 17921 | . . 530 781 1664 761 . 72 . 168 3342 460 359 455 1354 765 . 130 966 662 . . 178 . . . . . . . 950 4324 Explosions 14180 | . . . . . . . . 202 507 791 . 425 . 877 173 . 210 1836 534 . 1241 1563 345 . . . . . . 550 4926 Melee 12695 | . . . . . . . 472 858 881 . . 103 . . 50 . 485 1332 . . 2180 493 1071 1273 . . . 834 2464 . 199 Ramming . | . . . . . . . . . . . . . . . . . . . . . . . . . . . . . . . . Kinetic 9973 | 24 840 1099 871 936 761 . 72 . 168 3517 460 . . . . . . . . . . . . . 265 813 147 . . . . Thermal 19583 | 50 451 594 771 728 . . . . . . . 359 455 1354 765 . 340 789 662 . 43 . . . 140 1403 701 61 . 1412 8505 Explosive 9107 | . . . . . . . . 202 507 791 . 425 . 877 173 . . 1836 534 . 1109 1563 345 . . . . . . . 745 Electromagnetic 668 | . . . 136 . . . . . . . . . . . . . . 177 . . 89 178 . . . . . . . 88 . Impact 103 | . . . . . . . . . . . . 103 . . . . . . . . . . . . . . . . . . . Slashing 5063 | . . . . . . . 472 858 881 . . . . . . . . . . . . . . 529 . . . . 2124 . 199 Piercing 7529 | . . . . . . . . . . . . . . . 50 . 485 1332 . . 2180 493 1071 744 . . . 834 340 . . Highest Corruption 40 | . . . . . . 8 8 8 3 3 . 1 1 2 2 17 18 12 3 18 37 37 40 40 40 34 8 4 13 4 7 Average Corruption 12 | . . . . . . 8 8 3 3 3 . 1 1 1 1 11 17 8 2 12 25 37 39 40 35 24 6 4 5 3 4 Corruption Purged 52 | . . . . . . . . 8 . . . . . . . . 10 . . . . . . . 6 28 . . . . . Corruption Blocked . | . . . . . . . . . . . . . . . . . . . . . . . . . . . . . . . . Effects 537 | . . . . . . 3 24 10 23 32 . 6 2 14 2 7 46 39 9 10 32 48 31 58 34 50 16 5 22 . 14 Message Errors 128 | . . . . . . . 7 3 5 5 . . 1 4 . 3 13 13 1 3 4 12 9 18 11 7 2 1 3 . 3 Matter Fused 130 | . . . . . . 1 7 3 4 11 . 1 . 6 1 1 12 6 3 1 10 10 4 12 9 14 7 1 4 . 2 Heat Flow Errors 52 | . . . . . . . . 1 2 8 . . 1 2 . 1 3 2 1 . 7 6 3 4 1 2 1 . 4 . 3 Energy Discharges 57 | . . . . . . 1 3 . 4 1 . 1 . 1 . 2 6 4 1 2 3 7 4 5 1 2 3 2 1 . 3 Parts Rejected 16 | . . . . . . . . . 1 1 . . . . . . 2 2 . 2 . 2 4 . . 1 . . . . 1 Parts Fused 6 | . . . . . . . . . . . . . . . . . 1 1 . . . 1 . 2 . . . . . . 1 Data Loss (minor) 59 | . . . . . . 1 3 1 2 3 . 3 . 1 1 . 4 4 . . 3 8 4 5 5 5 2 . 4 . . Data Loss (major) 20 | . . . . . . . 3 2 2 . . 1 . . . . 1 3 1 1 2 . 1 1 . . . . 2 . . Misfires 23 | . . . . . . . 1 . 2 2 . . . . . . 2 2 2 1 2 . 1 . 2 4 1 . . . 1 Alerts 10 | . . . . . . . . . 1 . . . . . . . 2 1 . . . . 1 1 . 2 . 1 1 . . Misdirections 18 | . . . . . . . . . . . . . . . . . . 1 . . 1 2 . 10 1 . . . 3 . . Weapon Failures 18 | . . . . . . . . . . 1 . . . . . . . . . . . . . . 4 13 . . . . . Overload Shots 11 | . . . . . . . . . . . . 2 . 8 . . . . 1 . . . . . . . . . . . . Overflow Damage 4801 | . . . 3 19 67 . 113 105 257 339 73 36 17 34 16 . 51 225 54 . 498 65 138 99 . . . 254 611 157 1570 Projectiles 1724 | . . . 3 19 67 . . . 3 273 73 2 17 32 16 . . 19 39 . . 41 . . . . . . . 157 963 Explosions 800 | . . . . . . . . 6 . 66 . 6 . 2 . . 26 116 15 . 16 24 35 . . . . . . . 488 Melee 2277 | . . . . . . . 113 99 254 . . 28 . . . . 25 90 . . 482 . 103 99 . . . 254 611 . 119 Knockbacks 32 | . . . . 9 6 . . . . 13 2 2 . . . . . . . . . . . . . . . . . . . Impact 1 | . . . . . . . . . . . . 1 . . . . . . . . . . . . . . . . . . . Kinetic 28 | . . . . 7 6 . . . . 13 2 . . . . . . . . . . . . . . . . . . . . Secondary 3 | . . . . 2 . . . . . . . 1 . . . . . . . . . . . . . . . . . . . Self-Inflicted Damage 600 | . . . . . . . . . . . . 87 . 28 15 . . 29 . . 52 370 . 19 . . . . . . . Shots 14 | . . . . . . . . . . . . 2 . 1 1 . . 1 . . 2 6 . 1 . . . . . . . Rammed 1 | . . . . . . . . . . . . . . . . . . . . . . . . . . . 1 . . . . Targets Rammed 1 | . . . . . . . . . . . . . . . . . . . . . . . . . . . 1 . . . . Kicked . | . . . . . . . . . . . . . . . . . . . . . . . . . . . . . . . . Crushed . | . . . . . . . . . . . . . . . . . . . . . . . . . . . . . . . . Highest Temperature 428 | 27 144 1 428 260 14 . 4 144 249 237 60 135 204 220 46 164 273 329 176 . 197 253 . 20 . . 399 . 119 144 237 Average Temperature 78 | 12 56 1 113 91 5 . 4 57 65 41 22 71 78 83 14 83 99 95 62 . 89 80 . 20 . . 162 . 40 65 92 Received Heat Transfer 3512 | . 285 69 289 203 9 . 24 243 90 492 24 150 27 54 231 6 102 272 97 . 48 136 90 112 9 72 333 18 . 18 9 Effects 7 | . . . 5 1 . . . . . 1 . . . . . . . . . . . . . . . . . . . . . Shutdowns 1 | . . . 1 . . . . . . . . . . . . . . . . . . . . . . . . . . . . Energy Bleed 2 | . . . . 1 . . . . . 1 . . . . . . . . . . . . . . . . . . . . . Interference 2 | . . . 2 . . . . . . . . . . . . . . . . . . . . . . . . . . . . Short Circuit 1 | . . . 1 . . . . . . . . . . . . . . . . . . . . . . . . . . . . Damage (minor) 1 | . . . 1 . . . . . . . . . . . . . . . . . . . . . . . . . . . . Siege Activations 6 | . . . . . . . . . . . . . . . . . . . . . . . . . . 4 2 . . . . Total Turns 225 | . . . . . . . . . . . . . . . . . . . . . . . . . . 173 52 . . . . Longest Duration 87 | . . . . . . . . . . . . . . . . . . . . . . . . . . 87 42 . . . . Martial Activations . | . . . . . . . . . . . . . . . . . . . . . . . . . . . . . . . . Shielding Activations . | . . . . . . . . . . . . . . . . . . . . . . . . . . . . . . . . Robots Disrupted . | . . . . . . . . . . . . . . . . . . . . . . . . . . . . . . . . Combat Hostiles . | . . . . . . . . . . . . . . . . . . . . . . . . . . . . . . . . Robots Corrupted 1 | . . . . . . . . . . . . 1 . . . . . . . . . . . . . . . . . . . Combat Hostiles 1 | . . . . . . . . . . . . 1 . . . . . . . . . . . . . . . . . . . Parts Fried 9 | . . . 1 . . . . . . 1 . 1 . . . . . 1 . . 1 2 . . . . . . . 2 . Impact Corruptions 1 | . . . . . . . . . . . . 1 . . . . . . . . . . . . . . . . . . . Robots Melted 7 | . . . . . . . . . . . . . . 4 1 . . 1 1 . . . . . . . . . . . . Combat Hostiles 5 | . . . . . . . . . . . . . . 2 1 . . 1 1 . . . . . . . . . . . . Parts Melted 39 | 1 3 1 2 1 . . . 2 . . . 1 2 7 2 . . 3 4 . . 2 . . . 3 1 . . . 4 Heat Transferred 20202 | 148 1314 778 1297 1258 . . . . . . . 510 700 1803 1150 . 300 1250 930 . 50 . . . 222 1813 925 74 . 780 4900 Parts Sabotaged 1 | . . . . . . . . . . . . . . . 1 . . . . . . . . . . . . . . . . Parts Stolen . | . . . . . . . . . . . . . . . . . . . . . . . . . . . . . . . . Parts Stripped . | . . . . . . . . . . . . . . . . . . . . . . . . . . . . . . . . Power Chain Reactions 2 | . . . . . . . . . . . . . . . . . . . . . 2 . . . . . . . . . . Alert | -11 -10 -10 -8 -8 -7 -7 -7 -7 -7 -7 -6 -6 -6 -6 -5 -5 -5 -5 -4 -4 -4 -4 -4 -4 -4 -4 -4 -3 -3 -2 -1 ------- Run | Yrd Mat Sub Mat Gar Fac Was Fac Gar Fac Gar Fac Gar Fac Gar Fac Was Fac Gar Fac Was Fac Gar Fac Ext Cet Arc Hub Res Tes Res Acc Maximum Alert Level 5 | . . . . 3 2 . . 4 3 4 3 5 3 5 4 2 3 5 5 2 3 3 3 2 1 . . . 1 1 5 Low Security (%) 29 | 100 100 . 100 3 76 100 100 21 . . . . . . . . 4 . . . . . . 5 76 100 100 100 28 18 5 Level 1 14 | . . . . 26 7 . . 12 54 11 . . . . . . 36 1 . . 22 . . 90 23 . . . 71 81 17 Level 2 20 | . . . . 51 16 . . 25 41 12 . 2 . 18 . 100 59 27 . 100 72 50 95 4 . . . . . . 23 Level 3 19 | . . . . 18 . . . 29 3 55 100 29 100 28 56 . . 4 21 . 4 49 4 . . . . . . . 28 Level 4 13 | . . . . . . . . 10 . 20 . 51 . 35 43 . . 56 55 . . . . . . . . . . . 25 Level 5 2 | . . . . . . . . . . . . 16 . 16 . . . 10 22 . . . . . . . . . . . . High Security . | . . . . . . . . . . . . . . . . . . . . . . . . . . . . . . . . Max Security . | . . . . . . . . . . . . . . . . . . . . . . . . . . . . . . . . Peak Influence 1937 | 10 89 . 140 995 522 32 33 1279 702 1587 901 1730 907 1937 1428 503 701 1733 1689 564 716 949 710 409 245 77 91 155 253 375 1622 Initial 1016 | . . . . 53 522 32 . . 671 279 833 599 907 504 1016 489 324 366 909 564 341 490 497 326 215 . . 41 4 105 198 Average 562 | 1 36 . 51 518 162 13 2 584 439 840 833 1179 809 1189 1141 478 415 1165 1320 529 527 742 618 300 92 27 25 35 179 263 779 Influence Increases 23241 | 15 416 155 545 962 249 . 97 1489 724 1608 269 1551 198 1603 1098 64 1614 1607 1577 14 825 759 669 1059 296 255 293 353 551 456 1870 Destroy 0b10 Robot/C 9320 | . 240 80 340 420 100 . 20 580 300 760 120 560 100 620 440 . 520 540 700 . 480 380 280 460 160 80 120 40 160 80 640 Destroy 0b10 Robot/NC 640 | 15 30 . 40 . 20 . 25 . 40 10 10 5 15 30 30 . 40 15 20 . 70 . 40 20 . 45 10 15 35 10 50 Destroy Leader 1218 | . 56 . 98 20 44 . 12 10 90 60 40 50 20 50 42 . 80 20 90 . 78 20 64 42 . . 30 12 24 30 136 Allied During Kill 4068 | . . . . . 9 . 3 380 182 326 90 400 45 331 222 . 532 386 536 . 29 21 106 350 116 . . . . . 4 Successful Hack 481 | . 28 . 33 12 37 . 36 18 57 14 . . . 14 10 . 20 . 28 . 1 . . 33 . . 28 60 38 . 14 Select Force Hacks 30 | . 30 . . . . . . . . . . . . . . . . . . . . . . . . . . . . . . Disable Machine 915 | . . . 15 . 30 . . 30 15 15 . 30 . 90 75 . 75 15 120 . 60 30 45 15 . 90 45 . 45 15 60 Anti-Garrison Action 2700 | . . . . 400 . . . 400 . 350 . 400 . 350 150 . 150 350 . . . 150 . . . . . . . . . Destroy Structure 2729 | . 2 . 4 110 9 . 1 56 25 73 9 76 3 88 54 64 182 266 68 14 92 113 134 64 20 40 30 16 24 291 801 Partial Spotted 255 | . . . . . . . . . 15 . . . . . . . . . . . . . . 45 . . . 105 45 15 30 Lose Combat Pursuer 885 | . 30 75 15 . . . . 15 . . . 30 15 30 75 . 15 15 15 . 15 45 . 30 . . 30 105 180 15 135 Influence Decreases 21619 | 15 367 204 463 49 1152 92 97 210 1604 420 1000 677 1207 387 1637 999 1554 397 1696 1140 613 510 950 1342 681 255 214 424 372 312 579 Entered New Map 8944 | . . 25 . 29 473 60 . . 608 120 754 257 823 217 921 909 139 157 824 1050 147 210 452 342 170 . . 38 4 82 133 Time Decay 6513 | 15 357 159 453 . 529 32 97 . 416 . 206 . 294 . 386 90 440 . 362 90 326 . 238 380 171 255 174 179 318 160 386 Lost Part 877 | . 10 20 10 20 . . . . . 30 . 40 . 30 20 . 20 40 30 . 100 140 130 40 20 . 10 7 50 70 40 Lost Ally 3210 | . . . . . . . . 60 130 270 40 380 90 140 310 . 380 200 330 . 40 160 130 130 320 . 30 50 . . 20 Purge Threat 2075 | . . . . . 150 . . 150 450 . . . . . . . 575 . 150 . . . . 450 . . . 150 . . . Squads Dispatched 87 | . 2 . . . 5 . 3 . 5 . 4 . 3 . 10 . 11 . 9 . 2 . 4 . . . 5 5 8 2 9 Investigation 6 | . 2 . . . 1 . . . . . . . . . . . 1 . . . . . . . . . . 1 1 . . Extermination 28 | . . . . . 4 . 2 . 2 . 1 . 2 . 1 . 2 . 2 . 2 . . . . . 1 . 4 1 4 Reinforcement 30 | . . . . . . . 1 . 2 . . . 1 . 4 . 4 . 3 . . . 2 . . . 4 4 1 1 3 Assault 20 | . . . . . . . . . . . 3 . . . 5 . 2 . 4 . . . 2 . . . . . 2 . 2 Garrison 3 | . . . . . . . . . 1 . . . . . . . 2 . . . . . . . . . . . . . . Intercept . | . . . . . . . . . . . . . . . . . . . . . . . . . . . . . . . . Searches Triggered . | . . . . . . . . . . . . . . . . . . . . . . . . . . . . . . . . Construction Impeded 8 | . . . . . . . . . 1 . . . . . 2 . 2 . . . . . 2 . . . 1 . . . . Haulers Reinforced 9 | . . . . . . . . . 1 . . . . . 1 . 1 . 2 . . . . . . . . 3 . . 1 Active Scanning Responses . | . . . . . . . . . . . . . . . . . . . . . . . . . . . . . . . . Cargo Convoy Interrupts . | . . . . . . . . . . . . . . . . . . . . . . . . . . . . . . . . Stealth | -11 -10 -10 -8 -8 -7 -7 -7 -7 -7 -7 -6 -6 -6 -6 -5 -5 -5 -5 -4 -4 -4 -4 -4 -4 -4 -4 -4 -3 -3 -2 -1 --------- Run | Yrd Mat Sub Mat Gar Fac Was Fac Gar Fac Gar Fac Gar Fac Gar Fac Was Fac Gar Fac Was Fac Gar Fac Ext Cet Arc Hub Res Tes Res Acc Distress Signals 28 | . 1 . 4 . 1 . . . 1 . . . . . 3 . 2 . 4 . 1 . . 2 . . . 6 . . 3 Communications Jammed . | . . . . . . . . . . . . . . . . . . . . . . . . . . . . . . . . Distress Signals . | . . . . . . . . . . . . . . . . . . . . . . . . . . . . . . . . Times Spotted 875 | . 24 17 23 21 16 6 5 36 22 49 8 43 12 42 48 5 48 86 51 6 28 31 24 30 12 39 20 21 31 13 58 Peak Tracking Total 13 | . 4 4 4 4 4 6 1 5 4 8 4 5 4 6 10 2 5 7 9 2 6 9 5 5 5 1 6 7 7 6 13 Tactical Retreats 38 | . 2 2 1 . . . . 1 . . . 2 1 2 3 . 1 2 1 . 1 3 . 2 . . 2 3 3 1 5 Traps | -11 -10 -10 -8 -8 -7 -7 -7 -7 -7 -7 -6 -6 -6 -6 -5 -5 -5 -5 -4 -4 -4 -4 -4 -4 -4 -4 -4 -3 -3 -2 -1 ------- Run | Yrd Mat Sub Mat Gar Fac Was Fac Gar Fac Gar Fac Gar Fac Gar Fac Was Fac Gar Fac Was Fac Gar Fac Ext Cet Arc Hub Res Tes Res Acc Traps Triggered 49 | . 1 2 2 4 1 . . . 1 6 . 5 . 5 3 . 1 3 2 . 4 3 2 1 . . 1 . 1 . 1 Indirectly 2 | . . . . . . . . . . . . . . . . . . . . . 2 . . . . . . . . . . Trap Hack Attempts . | . . . . . . . . . . . . . . . . . . . . . . . . . . . . . . . . Triggered . | . . . . . . . . . . . . . . . . . . . . . . . . . . . . . . . . Disarmed . | . . . . . . . . . . . . . . . . . . . . . . . . . . . . . . . . Reprogrammed . | . . . . . . . . . . . . . . . . . . . . . . . . . . . . . . . . Reused . | . . . . . . . . . . . . . . . . . . . . . . . . . . . . . . . . Traps Extracted . | . . . . . . . . . . . . . . . . . . . . . . . . . . . . . . . . Installed . | . . . . . . . . . . . . . . . . . . . . . . . . . . . . . . . . Triggered . | . . . . . . . . . . . . . . . . . . . . . . . . . . . . . . . . Most Traps Carried 1 | . . 1 . . . . . . . . . . . . . . . . . . . . . . . . . . . . . Machines | -11 -10 -10 -8 -8 -7 -7 -7 -7 -7 -7 -6 -6 -6 -6 -5 -5 -5 -5 -4 -4 -4 -4 -4 -4 -4 -4 -4 -3 -3 -2 -1 ---------- Run | Yrd Mat Sub Mat Gar Fac Was Fac Gar Fac Gar Fac Gar Fac Gar Fac Was Fac Gar Fac Was Fac Gar Fac Ext Cet Arc Hub Res Tes Res Acc Machines Disabled 102 | . . 1 1 6 2 . . 10 1 6 . 8 . 11 6 . 6 6 8 . 4 4 3 2 . 6 3 . 3 1 4 Max in Single Turn 3 | . . 1 1 1 2 . . 1 1 1 . 1 . 1 1 . 1 1 1 . 2 1 3 1 . 1 2 . 1 1 1 Garrison Access 5 | . . . . . . . . . . . . . . . 1 . 1 . . . . . . . . . . 1 . . 2 Garrison Relay 37 | . . . . 6 . . . 8 . 5 . 6 . 5 . . . 5 . . . 2 . . . . . . . . . Energy Cycler 2 | . . . . . . . . . . . . . . . . . . . . . . . . 2 . . . . . . . Machines Repaired . | . . . . . . . . . . . . . . . . . . . . . . . . . . . . . . . . Machines Dismantled . | . . . . . . . . . . . . . . . . . . . . . . . . . . . . . . . . Machines Sabotaged . | . . . . . . . . . . . . . . . . . . . . . . . . . . . . . . . . Overloaded Fab Kills . | . . . . . . . . . . . . . . . . . . . . . . . . . . . . . . . . Hacking | -11 -10 -10 -8 -8 -7 -7 -7 -7 -7 -7 -6 -6 -6 -6 -5 -5 -5 -5 -4 -4 -4 -4 -4 -4 -4 -4 -4 -3 -3 -2 -1 --------- Run | Yrd Mat Sub Mat Gar Fac Was Fac Gar Fac Gar Fac Gar Fac Gar Fac Was Fac Gar Fac Was Fac Gar Fac Ext Cet Arc Hub Res Tes Res Acc Machines Accessed 126 | . 6 1 7 2 12 . 7 4 9 1 2 1 1 2 4 . 9 2 10 . 6 2 1 10 . . 4 5 7 1 10 Terminals 95 | . 5 . 5 2 10 . 6 4 7 1 . 1 . 2 1 . 5 2 6 . 1 2 1 10 . . 4 5 6 1 8 Fabricators 12 | . . . . . 2 . . . 1 . 1 . . . 2 . 1 . 2 . 2 . . . . . . . 1 . . Repair Stations . | . . . . . . . . . . . . . . . . . . . . . . . . . . . . . . . . Recycling Units 2 | . 1 . . . . . . . . . . . . . . . . . . . 1 . . . . . . . . . . Scanalyzers 4 | . . . 1 . . . . . . . . . . . . . 1 . 2 . . . . . . . . . . . . Garrison Access 12 | . . . 1 . . . 1 . 1 . 1 . 1 . 1 . 2 . . . 2 . . . . . . . . . 2 Total Hacks 283 | . 15 1 14 4 25 . 12 7 24 2 3 2 1 5 11 . 17 7 32 . 9 3 2 27 . . 13 13 18 1 15 Successful 149 | . 9 1 9 3 12 . 6 5 13 1 2 . 1 1 6 . 10 3 26 . 5 2 1 8 . . 5 8 9 . 3 Failed 133 | . 5 . 5 1 13 . 6 2 11 1 1 2 . 4 5 . 7 4 6 . 4 1 1 19 . . 8 5 9 1 12 Catastrophic 23 | . . . . . 1 . 1 . 1 . . . . 1 2 . 3 1 1 . 1 1 . 4 . . 2 . . . 4 Database Lockouts 1 | . 1 . . . . . . . . . . . . . . . . . . . . . . . . . . . . . . Manual 137 | . 9 . 10 1 14 . 3 4 14 1 . . . 1 6 . 10 5 12 . 5 . . 12 . . 9 6 9 . 6 Terminals 224 | . 14 . 11 4 22 . 11 7 19 2 . 2 . 5 2 . 13 7 16 . 1 3 2 27 . . 13 13 16 1 13 Fabricators 29 | . . . . . 3 . . . 4 . 2 . . . 8 . 1 . 6 . 3 . . . . . . . 2 . . Repair Stations . | . . . . . . . . . . . . . . . . . . . . . . . . . . . . . . . . Recycling Units 2 | . 1 . . . . . . . . . . . . . . . . . . . 1 . . . . . . . . . . Scanalyzers 13 | . . . 2 . . . . . . . . . . . . . 1 . 10 . . . . . . . . . . . . Garrison Access 14 | . . . 1 . . . 1 . 1 . 1 . 1 . 1 . 2 . . . 4 . . . . . . . . . 2 Terminal Hacks 65 | . 6 1 2 2 6 . 3 3 4 1 . . . 1 . . 4 2 10 . . 2 1 6 . . 2 5 4 . . Robot Analysis 5 | . 2 . . . 1 . . . . . . . . . . . . . 1 . . . . 1 . . . . . . . Prototype ID Bank 9 | . 1 . . . 2 . 1 . . . . . . . . . 1 . 2 . . . . 1 . . . . 1 . . Open Door 4 | . . . . . . . . 1 . . . . . . . . . . . . . 1 1 . . . . . 1 . . Branch Access Points 3 | . 1 . 1 . . . . . . . . . . . . . . . . . . . . . . . . 1 . . . Emergency Access Points 3 | . . . . 1 . . . . . 1 . . . . . . . 1 . . . . . . . . . . . . . Terminal Index 6 | . . . 1 . 1 . 1 . . . . . . . . . 1 . 1 . . . . . . . . . 1 . . Unreport Threat 12 | . . . . . 1 . . 1 3 . . . . . . . 2 . 1 . . . . 3 . . . 1 . . . Locate Traps 2 | . 1 . . . . . . . . . . . . . . . . . . . . . . 1 . . . . . . . Patrol Status 1 | . . . . . . . . . . . . . . . . . . . . . . . . . . . 1 . . . . Reinforcement Status 1 | . . . . . . . . . . . . . . . . . . . 1 . . . . . . . . . . . . Recall Reinforcements 2 | . . . . . . . . . . . . . . . . . . . 2 . . . . . . . . . . . . Hauler Manifests 5 | . 1 . . . 1 . . . 1 . . . . . . . . . 1 . . . . . . . . 1 . . . Registered Prototypes 1 | . . . . . . . . . . . . . . . . . . . . . . . . . . . . 1 . . . Zone Layout 4 | . . . . . . . 1 . . . . . . . . . . . 1 . . . . . . . 1 1 . . . Garrison Registry 2 | . . . . . . . . 1 . . . . . . . . . . . . . 1 . . . . . . . . . Patrol Navigation 1 | . . . . . . . . . . . . . . 1 . . . . . . . . . . . . . . . . . Security Stations 2 | . . . . 1 . . . . . . . . . . . . . 1 . . . . . . . . . . . . . Proto ID Catalog 1 | . . 1 . . . . . . . . . . . . . . . . . . . . . . . . . . . . . Protovariant Controls 1 | . . . . . . . . . . . . . . . . . . . . . . . . . . . . . 1 . . Fabricator Hacks 7 | . . . . . 1 . . . 1 . 1 . . . 1 . 1 . 2 . . . . . . . . . . . . Network Status 6 | . . . . . 1 . . . 1 . 1 . . . . . 1 . 2 . . . . . . . . . . . . Build 1 | . . . . . . . . . . . . . . . 1 . . . . . . . . . . . . . . . . Repair Station Hacks . | . . . . . . . . . . . . . . . . . . . . . . . . . . . . . . . . Recycling Unit Hacks 1 | . . . . . . . . . . . . . . . . . . . . . 1 . . . . . . . . . . Retrieve Components 1 | . . . . . . . . . . . . . . . . . . . . . 1 . . . . . . . . . . Scanalyzer 11 | . . . 2 . . . . . . . . . . . . . . . 9 . . . . . . . . . . . . Insert Component 7 | . . . 1 . . . . . . . . . . . . . . . 6 . . . . . . . . . . . . Analyze 4 | . . . 1 . . . . . . . . . . . . . . . 3 . . . . . . . . . . . . Garrison Access Hacks 12 | . . . 1 . . . 1 . 1 . 1 . 1 . 1 . 2 . . . 2 . . . . . . . . . 2 Unlock Access 9 | . . . 1 . . . 1 . 1 . 1 . 1 . 1 . 2 . . . 1 . . . . . . . . . . Seal Access 2 | . . . . . . . . . . . . . . . . . . . . . . . . . . . . . . . 2 Coupler Status 1 | . . . . . . . . . . . . . . . . . . . . . 1 . . . . . . . . . . Unauthorized Hacks 53 | . 3 . 4 1 5 . 2 2 7 . . . . . 4 . 3 1 5 . 2 . . 2 . . 3 3 5 . 1 Terminals 39 | . 2 . 4 1 5 . 2 2 4 . . . . . 1 . 3 1 2 . . . . 2 . . 3 3 3 . 1 Track 4 | . . . 1 . 2 . . . . . . . . . . . . . . . . . . . . . . . 1 . . Assimilate 2 | . . . . . . . . . 1 . . . . . . . . . . . . . . . . . . 1 . . . Botnet 29 | . 2 . 3 1 2 . 2 2 2 . . . . . 1 . 2 1 2 . . . . 2 . . 2 2 2 . 1 Operators 4 | . . . . . 1 . . . 1 . . . . . . . 1 . . . . . . . . . 1 . . . . Fabricators 13 | . . . . . . . . . 3 . . . . . 3 . . . 3 . 2 . . . . . . . 2 . . Report 5 | . . . . . . . . . 1 . . . . . 1 . . . 1 . 1 . . . . . . . 1 . . Liberate 5 | . . . . . . . . . 1 . . . . . 1 . . . 1 . 1 . . . . . . . 1 . . Haulers 3 | . . . . . . . . . 1 . . . . . 1 . . . 1 . . . . . . . . . . . . Repair Stations . | . . . . . . . . . . . . . . . . . . . . . . . . . . . . . . . . Recycling Units 1 | . 1 . . . . . . . . . . . . . . . . . . . . . . . . . . . . . . Tunnel 1 | . 1 . . . . . . . . . . . . . . . . . . . . . . . . . . . . . . Scanalyzers . | . . . . . . . . . . . . . . . . . . . . . . . . . . . . . . . . Garrison Access . | . . . . . . . . . . . . . . . . . . . . . . . . . . . . . . . . Data Cores Recovered 3 | . . . 1 . . . . . . . . . . . . . . . . . . . . . . . . . 1 1 . Used 3 | . . . 1 . . . . . . . . . . . . . . . . . . . . . . . . . 1 1 . Hacking Detections 109 | . 5 . 6 2 12 . 5 3 7 1 2 1 . 2 3 . 6 2 9 . 6 1 1 10 . . 4 5 7 1 8 Full Trace Events 2 | . . . . . 1 . . . . . . . . . . . . . . . . 1 . . . . . . . . . Feedback Events . | . . . . . . . . . . . . . . . . . . . . . . . . . . . . . . . . Feedback Blocked . | . . . . . . . . . . . . . . . . . . . . . . . . . . . . . . . . Robot Schematics Acquired 1 | . . . . . . . . . . . . . . . . . . . . . . . . . . . . . 1 . . Robots Built . | . . . . . . . . . . . . . . . . . . . . . . . . . . . . . . . . Authchips . | . . . . . . . . . . . . . . . . . . . . . . . . . . . . . . . . Time . | . . . . . . . . . . . . . . . . . . . . . . . . . . . . . . . . Total Robot Build Rating . | . . . . . . . . . . . . . . . . . . . . . . . . . . . . . . . . Part Schematics Acquired 13 | . . . 1 . . . . . . . . . . . . . . . 3 . . . . . . . . . 9 . . Parts Built 1 | . . . . . . . . . . . . . . . 1 . . . . . . . . . . . . . . . . Authchips . | . . . . . . . . . . . . . . . . . . . . . . . . . . . . . . . . Time 64 | . . . . . . . . . . . . . . . 64 . . . . . . . . . . . . . . . . Total Part Build Rating 8 | . . . . . . . . . . . . . . . 8 . . . . . . . . . . . . . . . . Parts Repaired . | . . . . . . . . . . . . . . . . . . . . . . . . . . . . . . . . Time . | . . . . . . . . . . . . . . . . . . . . . . . . . . . . . . . . Parts Recycled . | . . . . . . . . . . . . . . . . . . . . . . . . . . . . . . . . Recycled Matter . | . . . . . . . . . . . . . . . . . . . . . . . . . . . . . . . . Retrieved Matter . | . . . . . . . . . . . . . . . . . . . . . . . . . . . . . . . . Retrieved Components 1 | . . . . . . . . . . . . . . . . . . . . . 1 . . . . . . . . . . Parts Scanalyzed 4 | . . . 1 . . . . . . . . . . . . . . . 3 . . . . . . . . . . . . Part Schematics Acquired 4 | . . . 1 . . . . . . . . . . . . . . . 3 . . . . . . . . . . . . Parts Damaged . | . . . . . . . . . . . . . . . . . . . . . . . . . . . . . . . . Bothacking | -11 -10 -10 -8 -8 -7 -7 -7 -7 -7 -7 -6 -6 -6 -6 -5 -5 -5 -5 -4 -4 -4 -4 -4 -4 -4 -4 -4 -3 -3 -2 -1 ------------ Run | Yrd Mat Sub Mat Gar Fac Was Fac Gar Fac Gar Fac Gar Fac Gar Fac Was Fac Gar Fac Was Fac Gar Fac Ext Cet Arc Hub Res Tes Res Acc Used RIF Installer 9 | . . . . 2 . . . 1 . 1 . 2 . 1 . . . 1 . . . 1 . . . . . . . . . Hotswap 1 | . . . . . . . . . . . . 1 . . . . . . . . . . . . . . . . . . . Command Fork 2 | . . . . 1 . . . . . . . 1 . . . . . . . . . . . . . . . . . . . Zone Cloak 1 | . . . . . . . . . . . . . . . . . . . . . . 1 . . . . . . . . . Watcher Feeds 1 | . . . . . . . . 1 . . . . . . . . . . . . . . . . . . . . . . . Patrol Navigation 1 | . . . . . . . . . . 1 . . . . . . . . . . . . . . . . . . . . . Autooverride 1 | . . . . . . . . . . . . . . 1 . . . . . . . . . . . . . . . . . Crosswire 1 | . . . . . . . . . . . . . . . . . . 1 . . . . . . . . . . . . . Robots Hacked 207 | . . . . . 5 . 3 13 7 17 6 17 3 13 19 6 23 14 19 5 2 8 9 10 . . 3 2 . . 3 Non-combat 38 | . . . . . 2 . 1 . 2 . 4 2 2 1 5 . 7 . 3 . 1 . 2 5 . . 1 . . . . Combat 169 | . . . . . 3 . 2 13 5 17 2 15 1 12 14 6 16 14 16 5 1 8 7 5 . . 2 2 . . 3 Autooverrided 20 | . . . . . . . . . . . . . . 2 3 . 2 5 1 . . 1 1 . . . . 2 . . 3 Robot Hacks Applied 195 | . . . . . 6 . 3 13 7 19 6 17 3 11 16 6 23 9 19 5 3 8 8 10 . . 3 . . . . parse_system 3 | . . . . . . . . . . 1 . . . . . . 1 . . . . . . 1 . . . . . . . no_distress 1 | . . . . . . . . . . . 1 . . . . . . . . . . . . . . . . . . . . find_chute 1 | . . . . . . . . . . . . . . . 1 . . . . . . . . . . . . . . . . ignore_repairs 1 | . . . . . . . . . . . . . . . . . 1 . . . . . . . . . . . . . . map_walls 3 | . . . . . . . . . . . 1 . . . . . . . . . . . . 2 . . . . . . . map_earth 3 | . . . . . . . . . . . . . . . . . 1 . 1 . 1 . . . . . . . . . . drop_inventory 9 | . . . . . . . . . . . 1 . . . 2 . 2 . 2 . . . 1 1 . . . . . . . locate_stockpiles 1 | . . . . . . . . . . . . . 1 . . . . . . . . . . . . . . . . . . ignore_parts 1 | . . . . . . . . . . . . . . . 1 . . . . . . . . . . . . . . . . find_station 1 | . . . . . . . . . . . . . . . . . 1 . . . . . . . . . . . . . . purge_threat 2 | . . . . . . . . . . . . . . . . . 2 . . . . . . . . . . . . . . map_route 1 | . . . . . 1 . . . . . . . . . . . . . . . . . . . . . . . . . . mark_security 1 | . . . . . 1 . . . . . . . . . . . . . . . . . . . . . . . . . . ignore_targets 11 | . . . . . . . . . . . . . . . . 6 . . . 5 . . . . . . . . . . . find_garrison 4 | . . . . . . . . . . . . . . . . . 2 . 1 . 1 . . . . . . . . . . disrupt_area 1 | . . . . . . . . . . 1 . . . . . . . . . . . . . . . . . . . . . spike_heat 18 | . . . . . . . . 3 1 3 1 2 . 1 1 . 1 . 3 . . 1 . . . . 1 . . . . overload_power 2 | . . . . . . . . . . 1 . . . . . . . . . . . . . 1 . . . . . . . amplify_resonance 8 | . . . . . . . . . . . . . . . 3 . 2 1 2 . . . . . . . . . . . . wipe_record 4 | . . . . . . . . . . . . . . . . . . 1 . . . . 2 1 . . . . . . . disable_weapons 3 | . . . . . . . . . . 1 . . . 1 . . . . . . . . 1 . . . . . . . . reboot_system 2 | . . . . . . . . . 1 . . . . 1 . . . . . . . . . . . . . . . . . overwrite_iff 5 | . . . . . . . . 2 . 2 . . . . . . . . 1 . . . . . . . . . . . . formatsys_low 3 | . . . . . . . 1 . . . . 1 . . . . . . . . . . 1 . . . . . . . . formatsys_high 105 | . . . . . 4 . 2 8 5 10 2 14 2 8 8 . 10 7 8 . 1 7 3 4 . . 2 . . . . formatsys_deep 1 | . . . . . . . . . . . . . . . . . . . 1 . . . . . . . . . . . . Relay Couplers Released 159 | . . . . 24 . . . 32 . 21 . 27 . 20 1 . 1 22 . . . 9 . . . . . 2 . . . Machine Destruction 155 | . . . . 24 . . . 32 . 17 . 27 . 20 1 . 1 22 . . . 9 . . . . . 2 . . . Programmers 4 | . . . . . . . . . . 4 . . . . . . . . . . . . . . . . . . . . . Attached 66 | . . . . . 3 . 3 8 1 11 2 9 . 10 2 . 1 6 2 . 1 2 3 1 . . 1 . . . . Crosswired 8 | . . . . . . . . . . . . . . . . . . 5 . . . 3 . . . . . . . . . Fabnet Peak Effective % . | . . . . . . . . . . . . . . . . . . . . . . . . . . . . . . . . Robots Rewired 25 | . . . . . . . . 3 . 4 . . . 1 1 . . . 3 . . . . 13 . . . . . . . Allies Hacked 6 | . . . . . . . . . . 1 . . . . . . 3 1 . . 1 . . . . . . . . . . Hacks Repelled . | . . . . . . . . . . . . . . . . . . . . . . . . . . . . . . . . Allies | -11 -10 -10 -8 -8 -7 -7 -7 -7 -7 -7 -6 -6 -6 -6 -5 -5 -5 -5 -4 -4 -4 -4 -4 -4 -4 -4 -4 -3 -3 -2 -1 -------- Run | Yrd Mat Sub Mat Gar Fac Was Fac Gar Fac Gar Fac Gar Fac Gar Fac Was Fac Gar Fac Was Fac Gar Fac Ext Cet Arc Hub Res Tes Res Acc Total Allies 225 | . . . . . 4 . 3 15 6 19 2 23 3 15 15 20 17 16 15 . 4 10 7 23 . . 2 3 . . 3 Largest Group 21 | . . . . . 3 2 3 12 11 10 10 18 7 9 15 21 19 16 17 1 3 4 5 17 16 . 1 1 . . 1 Highest-Rated Group 794 | . . . . . 42 28 74 315 278 340 342 509 182 403 633 764 726 516 677 47 141 196 366 794 663 . 68 26 . . 58 Highest-Rated Ally 159 | . . . . . 21 21 32 32 32 40 40 46 29 148 148 50 50 85 64 47 49 49 142 159 56 . 68 26 . . 58 Total Orders 15 | . . . . . . . . . 2 . . 2 . . 7 . . . 1 . . . 3 . . . . . . . . STAY 3 | . . . . . . . . . 1 . . . . . . . . . 1 . . . 1 . . . . . . . . FOLLOW 2 | . . . . . . . . . 1 . . . . . . . . . . . . . 1 . . . . . . . . AID 3 | . . . . . . . . . . . . 2 . . . . . . . . . . 1 . . . . . . . . EXPLORE 7 | . . . . . . . . . . . . . . . 7 . . . . . . . . . . . . . . . . Ally Attacks 1600 | . . . . . 13 7 . 101 33 92 13 116 38 79 117 100 115 297 161 39 32 29 59 85 68 . . 1 . . 5 Total Damage 43375 | . . . . . 162 142 . 2013 620 2688 475 3068 624 1255 2785 3863 3892 6238 4768 1360 693 1065 2494 2804 2198 . . 40 . . 128 Kills 302 | . . . . . 1 . . 20 8 14 5 20 4 16 16 12 30 78 30 1 5 4 14 17 7 . . . . . . Allies Corrupted 18 | . . . . . . . . 1 1 . . . . . 1 . 6 3 2 . 1 1 2 . . . . . . . . Allies Melted 2 | . . . . . . . . . . . . . . . . . . 1 . . . . . 1 . . . . . . . Intel | -11 -10 -10 -8 -8 -7 -7 -7 -7 -7 -7 -6 -6 -6 -6 -5 -5 -5 -5 -4 -4 -4 -4 -4 -4 -4 -4 -4 -3 -3 -2 -1 ------- Run | Yrd Mat Sub Mat Gar Fac Was Fac Gar Fac Gar Fac Gar Fac Gar Fac Was Fac Gar Fac Was Fac Gar Fac Ext Cet Arc Hub Res Tes Res Acc Active Infowar (turns) 13423 | 14 1014 449 1054 186 1248 . 602 39 775 15 329 398 266 269 . . . . . . 320 895 518 881 508 786 462 455 703 332 905 Optics 7470 | . . 415 290 . . . . . . . . . . . . . . . . . 320 895 518 881 508 786 462 455 703 332 905 Sensors 808 | . . . . . . . . . . . . . . . . . . . . . . . . . . . . . . 330 478 Structural 1620 | . . 34 . . . . . . . . . . . . . . . . . . . . . . . . . . 642 332 612 Traps 743 | . . . . . . . . . . . 263 . 266 214 . . . . . . . . . . . . . . . . . Seismic 5389 | 14 1014 . 764 186 1248 . 602 39 775 15 66 398 . 268 . . . . . . . . . . . . . . . . . ECM 1 | . . . . . . . . . . . . . . . . . . . . . . . . . . . . 1 . . . Robot Analysis Total 5 | . 2 . . . 1 . . . . . . . . . . . . . 1 . . . . 1 . . . . . . . Derelict Logs Recovered 1 | . . 1 . . . . . . . . . . . . . . . . . . . . . . . . . . . . . Drone Launches 8 | . . . . . . . . . . . . . . . 8 . . . . . . . . . . . . . . . . Drone Recoveries 6 | . . . . . . . . . . . . . . . 6 . . . . . . . . . . . . . . . . Exploration | -11 -10 -10 -8 -8 -7 -7 -7 -7 -7 -7 -6 -6 -6 -6 -5 -5 -5 -5 -4 -4 -4 -4 -4 -4 -4 -4 -4 -3 -3 -2 -1 ------------- Run | Yrd Mat Sub Mat Gar Fac Was Fac Gar Fac Gar Fac Gar Fac Gar Fac Was Fac Gar Fac Was Fac Gar Fac Ext Cet Arc Hub Res Tes Res Acc Turns Passed 28840 | 92 1142 3386 1393 1471 1629 101 702 1076 1011 1531 428 1433 659 1323 915 199 1096 1054 825 199 730 895 518 881 508 786 462 455 703 332 905 Spaces Moved 19066 | 46 539 1857 728 786 937 64 460 667 647 873 262 710 340 766 594 122 749 594 573 135 434 334 307 881 276 124 176 733 1373 459 1520 Core 8 | 7 . . . . . . . . . . . . . . . . . . . . . . 1 . . . . . . . . Treads 5692 | 39 539 1384 479 786 937 64 241 . . . . 501 209 . . . . . . . . . . . 131 124 176 82 . . . Legs 1213 | . . . . . . . 219 667 75 . . . . . . . . . . . . 241 11 . . . . . . . . Wheels 6982 | . . 473 249 . . . . . 572 873 262 209 131 766 594 122 749 594 573 135 434 93 153 . . . . . . . . Hover 1854 | . . . . . . . . . . . . . . . . . . . . . . . 142 881 145 . . . 291 395 . Flight 3317 | . . . . . . . . . . . . . . . . . . . . . . . . . . . . 651 1082 64 1520 Fastest Speed 15 | 50 160 120 90 151 151 158 120 120 95 115 120 120 116 105 112 125 115 115 109 110 110 110 38 40 43 160 160 15 15 36 33 Average Speed 110 | 143 160 160 139 151 155 158 139 120 111 128 126 156 164 116 122 125 119 119 111 110 115 210 95 41 99 160 160 31 25 52 33 Slowest Speed 1900 | 160 160 240 240 151 158 158 190 120 120 160 131 243 242 145 143 125 130 160 123 110 245 540 1900 48 160 160 160 160 111 122 116 Overloaded Moves . | . . . . . . . . . . . . . . . . . . . . . . . . . . . . . . . . Propulsion Burnouts . | . . . . . . . . . . . . . . . . . . . . . . . . . . . . . . . . Robots Hopped 8 | . . . . . . . . . . . . . . . . . . . . . . . . . . . . 1 4 2 1 Potential Cave-ins 4 | . . . . . . . . . . . . . . . . . . . . . . . . . . . 4 . . . . Cave-ins Triggered . | . . . . . . . . . . . . . . . . . . . . . . . . . . . . . . . . Exploration Rate (%) 53 | 3 74 85 49 92 24 72 16 76 33 79 14 79 13 80 31 83 35 88 31 95 22 36 9 92 78 83 44 31 96 13 52 Regions Visited 31 Branch Regions 6 Pre-discovered Areas 2 | . 1 1 . . . . . . . . . . . . . . . . . . . . . . . . . . . . . Known Exits Taken 9 | . . . 1 . . . 1 . 1 . 1 . 1 . . . 1 . . . 1 . . . . . . 1 . 1 . Unknown Exits Taken 9 | 1 1 1 . . . . . . . . . . . . . . . . . . . . 1 1 1 1 1 . 1 . . Scrap Searched 5 | . . 5 . . . . . . . . . . . . . . . . . . . . . . . . . . . . . Spaces Dug 301 | . . 1 . . 2 . . . 8 . 1 42 . 20 . 1 4 46 8 6 18 1 1 1 1 . 9 7 12 55 57 Terrain Destroyed 1258 | . . 4 . . 7 . 1 20 32 42 9 90 3 63 19 1 22 162 33 7 44 64 84 32 13 23 21 8 12 121 321 Melee 37 | . . 1 . . . . . . 5 . . 3 . . . . 4 . . . . 1 1 1 . . . 7 12 . 2 Projectile 159 | . . 3 . . 7 . 1 . 5 26 9 1 3 5 2 1 3 1 11 7 1 . . . 13 22 21 1 . 3 13 AOE 1061 | . . . . . . . . 20 22 16 . 86 . 58 17 . 15 161 22 . 43 63 83 31 . . . . . 118 306 Terrain Rammed . | . . . . . . . . . . . . . . . . . . . . . . . . . . . . . . . . Walls Destroyed . | . . . . . . . . . . . . . . . . . . . . . . . . . . . . . . . . Machines Disabled . | . . . . . . . . . . . . . . . . . . . . . . . . . . . . . . . . Actions | -11 -10 -10 -8 -8 -7 -7 -7 -7 -7 -7 -6 -6 -6 -6 -5 -5 -5 -5 -4 -4 -4 -4 -4 -4 -4 -4 -4 -3 -3 -2 -1 --------- Run | Yrd Mat Sub Mat Gar Fac Was Fac Gar Fac Gar Fac Gar Fac Gar Fac Was Fac Gar Fac Was Fac Gar Fac Ext Cet Arc Hub Res Tes Res Acc Total 24698 | 61 674 2077 956 944 1057 64 504 871 894 1113 334 972 416 1104 731 164 901 834 719 177 572 444 485 1378 481 574 284 926 1620 535 1832 Wait 2565 | 3 40 53 69 26 26 . 8 89 177 29 25 112 35 156 29 33 49 52 46 25 39 9 81 388 146 366 45 107 90 32 180 Move 19028 | 45 538 1856 728 785 937 63 460 666 647 872 261 709 340 765 594 121 749 593 573 134 434 333 306 880 275 123 176 730 1364 454 1517 Hop 8 | . . . . . . . . . . . . . . . . . . . . . . . . . . . . 1 4 2 1 Pick Up 275 | 2 8 19 13 20 5 1 4 12 3 25 5 18 3 15 9 1 9 12 7 1 7 10 6 6 8 1 3 10 12 6 14 Fast Attach 292 | 7 2 9 27 3 12 . 5 8 7 6 7 2 4 5 9 . 10 4 7 4 15 12 22 7 9 8 2 19 36 5 19 Attach 129 | . 1 2 1 1 2 . 1 2 6 9 2 9 1 8 2 1 4 7 4 . 5 8 16 2 . . 3 8 5 10 9 Detach 51 | . . 1 1 . . . . . 5 3 . 6 2 . . . 1 1 3 . . 2 1 . . . . 10 3 6 6 Swap 185 | . 3 13 7 3 4 . 4 11 1 11 3 20 6 19 6 1 6 15 9 . 6 8 5 4 4 3 7 . 5 . 1 Drop 363 | . 4 23 33 19 16 . 7 17 9 6 10 9 7 15 9 . 10 4 6 2 9 . 11 8 19 5 3 24 48 7 23 Fire 1239 | 4 78 88 77 87 55 . 8 26 18 126 20 41 18 79 69 7 41 71 64 11 8 26 15 1 19 68 45 1 . 13 55 Melee 405 | . . 1 . . . . 7 40 21 . . 13 . 2 1 . 18 50 . . 49 35 21 70 1 . . 16 53 . 7 Ram . | . . . . . . . . . . . . . . . . . . . . . . . . . . . . . . . . Kick . | . . . . . . . . . . . . . . . . . . . . . . . . . . . . . . . . Crush . | . . . . . . . . . . . . . . . . . . . . . . . . . . . . . . . . Escape Stasis 125 | . . . . . . . . . . 24 . 32 . 40 . . . 24 . . . . . 5 . . . . . . . Rewire 21 | . . . . . . . . . . 2 1 1 . . 3 . 4 1 . . . 1 1 7 . . . . . . . Trap . | . . . . . . . . . . . . . . . . . . . . . . . . . . . . . . . . Miscellaneous 12 | . . 12 . . . . . . . . . . . . . . . . . . . . . . . . . . . . . Route ------- -11/Scrapyard -10/Materials (discovered 6 exits: [*Mat x3] / *Min x2 / *Sub) -10/Subcaves (discovered 2 exits: *Mat x2) -8/Materials (discovered 2 exits: *Fac / Gar) -8/Garrison (discovered 3 exits: *Fac x3) -7/Factory -7/Waste -7/Factory (discovered 2 exits: [*Low] / Gar) -7/Garrison (discovered 3 exits: *Fac x3) -7/Factory (discovered 4 exits: *Fac / [*Sto] / [*Low] / Gar) -7/Garrison (discovered 3 exits: *Fac x3) -6/Factory -6/Garrison (discovered 4 exits: *Fac x3 / *Fac) -6/Factory -6/Garrison (discovered 3 exits: *Fac x3) -5/Factory (discovered 2 exits: [*Upp x2]) -5/Waste -5/Factory (discovered 2 exits: *Fac / Gar) -5/Garrison (discovered 3 exits: *Fac x3) -4/Factory (discovered 2 exits: *Res / [*Upp]) -4/Waste -4/Factory (discovered 4 exits: *Res / [*Upp] / *Ext / Gar) -4/Garrison (discovered 3 exits: *Fac x3) -4/Factory (discovered 2 exits: *Res / *Ext) -4/Extension (discovered 3 exits: *Res x2 / [*Cet]) -4/Cetus (discovered 3 exits: *Res x2 / [*Arc]) -4/Archives (discovered 3 exits: *Res / *Hub x2) -4/Hub_04(d) (discovered 3 exits: *Res x3) -3/Research (discovered 2 exits: *Tes x2) -3/Testing -2/Research -1/Access To Epsilon Eridani History --------- Turn | Location | Event 5 | -11/Scrapyard | Discovered new exit (range 16) 93 | -11/Scrapyard | Entered Materials 127 | -10/Materials | Discovered new exit (range 15) 199 | -10/Materials | Discovered new exit (range 13) 306 | -10/Materials | Build established: Mutant 450 | -10/Materials | Discovered new exit (range 15) 993 | -10/Materials | Identified exit to Mines 993 | -10/Materials | Central database locked down 1125 | -10/Materials | Core integrity fell below 50% 1209 | -10/Materials | Discovered new exit (range 7) 1216 | -10/Materials | Discovered new exit (range 9) 1235 | -10/Materials | Entered Subcaves 1398 | -10/Subcaves | Visited 4L-MR0's lab 1419 | -10/Subcaves | Found Gun Armor 1878 | -10/Subcaves | A swath of the cavern ceiling suddenly collapsed 2039 | -10/Subcaves | Build established: Subdweller-Mutant 2059 | -10/Subcaves | A swath of the cavern ceiling suddenly collapsed 2494 | -10/Subcaves | Discovered new exit (range 7) 2762 | -10/Subcaves | Discovered new exit (range 10) 3321 | -10/Subcaves | Disturbed a concealed Subdweller 4366 | -10/Subcaves | Build established: Scavenger-Mutant 4555 | -10/Subcaves | Core integrity fell below 20% 4621 | -10/Subcaves | Entered Materials 4621 | -8/Materials | Evolved 4 slots: Propulsion x2, Utility x2 4949 | -8/Materials | Discovered new exit (range 5) 5886 | -8/Materials | Build established: Mutant 6014 | -8/Materials | Identified exit to Garrison 6014 | -8/Materials | Entered Garrison 6034 | -8/Garrison | Garrison Relay disabled 6048 | -8/Garrison | Triggered checkpoint 6066 | -8/Garrison | Garrison Relay disabled 6194 | -8/Garrison | Discovered new exit (range 8) 6220 | -8/Garrison | Triggered checkpoint 6302 | -8/Garrison | Triggered checkpoint 6322 | -8/Garrison | Installed Relay Interface Framework 6368 | -8/Garrison | Expanded RIF knowledge: Command Fork 6458 | -8/Garrison | Garrison Relay disabled 6534 | -8/Garrison | Garrison Relay disabled 6616 | -8/Garrison | Triggered checkpoint 6882 | -8/Garrison | Triggered checkpoint 7025 | -8/Garrison | Garrison Relay disabled 7071 | -8/Garrison | Discovered new exit (range 11) 7080 | -8/Garrison | Learned Factory security intel 7266 | -8/Garrison | Garrison Relay disabled 7306 | -8/Garrison | Discovered new exit (range 11) 7485 | -8/Garrison | Entered Factory 7485 | -7/Factory | Evolved 2 slots: Utility x2 7697 | -7/Factory | Build established: Bothacker-Mutant 8767 | -7/Factory | P-60 Hacker assimilated allied Trooper 4a 8958 | -7/Factory | Discovered new exit (range 6) 9114 | -7/Factory | Sucked down chute 9114 | -7/Factory | Entered Waste 9129 | -7/Waste | EMP discharged 9156 | -7/Waste | Spotted C-40 Crusher 9168 | -7/Waste | Spotted C-40 Crusher 9168 | -7/Waste | Spotted C-40 Crusher 9174 | -7/Waste | 2 allies followed down the chute 9177 | -7/Waste | Spotted C-40 Crusher 9177 | -7/Waste | Spotted C-40 Crusher 9200 | -7/Waste | Discovered new exit (range 10) 9201 | -7/Waste | Spotted C-40 Crusher 9215 | -7/Waste | Entered Factory 9398 | -7/Factory | Discovered new exit (range 4) 9917 | -7/Factory | Identified exit to Garrison 9917 | -7/Factory | Entered Garrison 9917 | -7/Garrison | Accompanied by 3 allies 9927 | -7/Garrison | Triggered checkpoint 9948 | -7/Garrison | Expanded RIF knowledge: Watcher Feeds 10029 | -7/Garrison | Triggered checkpoint 10032 | -7/Garrison | Garrison Relay disabled 10133 | -7/Garrison | Triggered checkpoint 10133 | -7/Garrison | Triggered checkpoint 10273 | -7/Garrison | Triggered checkpoint 10284 | -7/Garrison | Garrison Relay disabled 10357 | -7/Garrison | Discovered new exit (range 12) 10357 | -7/Garrison | Discovered new exit (range 43) 10357 | -7/Garrison | Discovered new exit (range 66) 10417 | -7/Garrison | Triggered checkpoint 10443 | -7/Garrison | Triggered checkpoint 10486 | -7/Garrison | Triggered checkpoint 10506 | -7/Garrison | Garrison Relay disabled 10563 | -7/Garrison | P-60 Hacker assimilated allied Guardian 4b 10576 | -7/Garrison | P-60 Hacker assimilated allied CS-06T(l) 10630 | -7/Garrison | Lost 5 allies 10641 | -7/Garrison | Garrison Relay disabled 10668 | -7/Garrison | Garrison Relay disabled 10678 | -7/Garrison | Garrison Relay disabled 10696 | -7/Garrison | Garrison Relay disabled 10857 | -7/Garrison | Triggered checkpoint 10879 | -7/Garrison | Triggered checkpoint 10894 | -7/Garrison | Attached Gun Armor, gained temporary slots: Weapon x2 10927 | -7/Garrison | Garrison Relay disabled 10993 | -7/Garrison | Entered Factory 10993 | -7/Factory | Accompanied by 7 allies 11178 | -7/Factory | Build established: Bothacker-Gunner 11337 | -7/Factory | Discovered new exit (range 4) 11640 | -7/Factory | Discovered new exit (range 9) 11650 | -7/Factory | Discovered new exit (range 16) 11701 | -7/Factory | Lost 4 allies 11995 | -7/Factory | Garrison activated, responded to threat 12004 | -7/Factory | Identified exit to Garrison 12004 | -7/Factory | Entered Garrison 12004 | -7/Garrison | Accompanied by 6 allies 12018 | -7/Garrison | Triggered checkpoint 12032 | -7/Garrison | Garrison Relay disabled 12171 | -7/Garrison | Triggered checkpoint 12176 | -7/Garrison | Triggered checkpoint 12183 | -7/Garrison | P-70 Sage assimilated allied Soldier 4c 12192 | -7/Garrison | Triggered checkpoint 12230 | -7/Garrison | Triggered checkpoint 12265 | -7/Garrison | Lost 8 allies 12522 | -7/Garrison | Discovered new exit (range 8) 12544 | -7/Garrison | Triggered checkpoint 12711 | -7/Garrison | Garrison Relay disabled 12915 | -7/Garrison | Spotted B-75 Beast 12929 | -7/Garrison | Discovered new exit (range 14) 12959 | -7/Garrison | Destroyed B-75 Beast 12974 | -7/Garrison | Triggered checkpoint 12976 | -7/Garrison | Lost 4 allies 13012 | -7/Garrison | Garrison Relay disabled 13051 | -7/Garrison | Expanded RIF knowledge: Patrol Navigation 13217 | -7/Garrison | Core integrity fell below 50% 13233 | -7/Garrison | Spotted B-75 Beast 13337 | -7/Garrison | Garrison Relay disabled 13340 | -7/Garrison | Build established: Botlord-Gunner 13374 | -7/Garrison | Triggered checkpoint 13394 | -7/Garrison | Triggered checkpoint 13450 | -7/Garrison | Garrison Relay disabled 13485 | -7/Garrison | Discovered new exit (range 13) 13535 | -7/Garrison | Entered Factory 13535 | -6/Factory | Accompanied by 9 allies 13535 | -6/Factory | Evolved 2 slots: Utility x2 13758 | -6/Factory | Lost 4 allies 13885 | -6/Factory | First assault squad dispatched 13926 | -6/Factory | Identified exit to Garrison 13963 | -6/Factory | Entered Garrison 13963 | -6/Garrison | Accompanied by 7 allies 14028 | -6/Garrison | Triggered checkpoint 14060 | -6/Garrison | Expanded RIF knowledge: Hotswap 14066 | -6/Garrison | Garrison Relay disabled 14129 | -6/Garrison | Triggered checkpoint 14167 | -6/Garrison | Garrison Relay disabled 14284 | -6/Garrison | Build established: Botlord-Mutant 14394 | -6/Garrison | Spotted B-75 Beast 14403 | -6/Garrison | Allies destroyed B-75 Beast 14413 | -6/Garrison | Triggered checkpoint 14423 | -6/Garrison | Triggered checkpoint 14491 | -6/Garrison | Triggered checkpoint 14515 | -6/Garrison | Garrison Relay disabled 14564 | -6/Garrison | Discovered new exit (range 10) 14677 | -6/Garrison | Expanded RIF knowledge: Command Fork 14819 | -6/Garrison | Triggered checkpoint 14821 | -6/Garrison | Triggered checkpoint 14855 | -6/Garrison | Lost 4 allies 14883 | -6/Garrison | Discovered new exit (range 8) 14901 | -6/Garrison | Triggered checkpoint 14923 | -6/Garrison | Garrison Relay disabled 15121 | -6/Garrison | Triggered checkpoint 15122 | -6/Garrison | Triggered checkpoint 15153 | -6/Garrison | Garrison Relay disabled 15185 | -6/Garrison | Lost 4 allies 15188 | -6/Garrison | Discovered new exit (range 5) 15244 | -6/Garrison | Garrison Relay disabled 15267 | -6/Garrison | Triggered checkpoint 15299 | -6/Garrison | Discovered new exit (range 11) 15396 | -6/Garrison | Entered Factory 15396 | -6/Factory | Accompanied by 6 allies 15685 | -6/Factory | P-60 Hacker assimilated allied Soldier 5j 15751 | -6/Factory | Lost 3 allies 16055 | -6/Factory | Identified exit to Garrison 16055 | -6/Factory | Entered Garrison 16055 | -6/Garrison | Accompanied by 3 allies 16243 | -6/Garrison | Triggered checkpoint 16248 | -6/Garrison | Garrison Relay disabled 16291 | -6/Garrison | Triggered checkpoint 16328 | -6/Garrison | P-60 Hacker assimilated allied Soldier 5l 16385 | -6/Garrison | Triggered checkpoint 16425 | -6/Garrison | Lost 3 allies 16453 | -6/Garrison | Rewired B-90 Cyclops 16476 | -6/Garrison | Found Quantum Capacitor 16573 | -6/Garrison | Discovered new exit (range 11) 16585 | -6/Garrison | Expanded RIF knowledge: Autooverride 16613 | -6/Garrison | Triggered checkpoint 16628 | -6/Garrison | Garrison Relay disabled 16761 | -6/Garrison | Triggered checkpoint 16761 | -6/Garrison | Triggered checkpoint 16780 | -6/Garrison | Triggered checkpoint 16813 | -6/Garrison | Triggered checkpoint 16831 | -6/Garrison | Garrison Relay disabled 16857 | -6/Garrison | Discovered new exit (range 8) 17035 | -6/Garrison | Triggered checkpoint 17052 | -6/Garrison | Garrison Relay disabled 17122 | -6/Garrison | Discovered new exit (range 10) 17145 | -6/Garrison | Triggered checkpoint 17173 | -6/Garrison | Triggered checkpoint 17378 | -6/Garrison | Entered Factory 17378 | -5/Factory | Accompanied by 7 allies 17378 | -5/Factory | Evolved 2 slots: Utility x2 17678 | -5/Factory | First assault squad dispatched 17719 | -5/Factory | Fabricated Com. HERF Cannon (x1) 17787 | -5/Factory | Lost 12 allies 17857 | -5/Factory | Identified exit to Garrison 18031 | -5/Factory | Lost 3 allies 18071 | -5/Factory | Discovered new exit (range 30) 18084 | -5/Factory | Lost 3 allies 18135 | -5/Factory | Discovered new exit (range 24) 18293 | -5/Factory | Sucked down chute 18293 | -5/Factory | Entered Waste 18294 | -5/Waste | Met a frightened Derelict 18303 | -5/Waste | 3 allies followed down the chute 18305 | -5/Waste | Spotted C-40 Crusher 18308 | -5/Waste | EMP discharged 18326 | -5/Waste | Spotted C-40 Crusher 18328 | -5/Waste | Spotted C-40 Crusher 18355 | -5/Waste | Met Warlord forces unprepared to attack 18361 | -5/Waste | Allies destroyed C-40 Crusher 18373 | -5/Waste | Spotted C-40 Crusher 18375 | -5/Waste | Spotted C-40 Crusher 18381 | -5/Waste | Allies destroyed C-40 Crusher 18387 | -5/Waste | Spotted C-40 Crusher 18390 | -5/Waste | Allies destroyed C-40 Crusher 18397 | -5/Waste | Allies destroyed C-40 Crusher 18397 | -5/Waste | Allies destroyed C-40 Crusher 18408 | -5/Waste | EMP discharged 18408 | -5/Waste | System corruption reached 10% 18419 | -5/Waste | Lost 6 allies 18435 | -5/Waste | Discovered new exit (range 12) 18492 | -5/Waste | Entered Factory 18492 | -5/Factory | Accompanied by 15 allies 18749 | -5/Factory | Discovered new exit (range 6) 18849 | -5/Factory | P-70 Sage assimilated allied 14-73E(d) 19261 | -5/Factory | Spotted B-75 Beast 19298 | -5/Factory | Garrison activated, responded to threat 19335 | -5/Factory | Lost 14 allies 19447 | -5/Factory | Identified exit to Garrison 19587 | -5/Factory | Identified exit to Garrison 19588 | -5/Factory | Entered Garrison 19588 | -5/Garrison | Accompanied by 8 allies 19638 | -5/Garrison | Triggered checkpoint 19674 | -5/Garrison | Garrison Relay disabled 19726 | -5/Garrison | Triggered checkpoint 19745 | -5/Garrison | Garrison Relay disabled 19817 | -5/Garrison | Learned Factory security intel 19867 | -5/Garrison | Spotted B-75 Beast 19879 | -5/Garrison | Triggered checkpoint 19880 | -5/Garrison | Triggered checkpoint 19893 | -5/Garrison | Triggered checkpoint 19899 | -5/Garrison | Allies destroyed B-75 Beast 19904 | -5/Garrison | Triggered checkpoint 19961 | -5/Garrison | Garrison Relay disabled 19982 | -5/Garrison | Triggered checkpoint 20012 | -5/Garrison | Expanded RIF knowledge: Crosswire 20031 | -5/Garrison | Discovered new exit (range 11) 20092 | -5/Garrison | Assembled breached garrison interior 20203 | -5/Garrison | Garrison Relay disabled 20258 | -5/Garrison | Discovered new exit (range 3) 20282 | -5/Garrison | Spotted Striker 20563 | -5/Garrison | Destroyed 20 combat bots 20570 | -5/Garrison | Garrison Relay disabled 20611 | -5/Garrison | Discovered new exit (range 9) 20642 | -5/Garrison | Entered Factory 20642 | -4/Factory | Accompanied by 10 allies 20642 | -4/Factory | Evolved 2 slots: Propulsion x2 20870 | -4/Factory | Found Prototype Hackware 20874 | -4/Factory | Identified Exp. Hacking Suite 20892 | -4/Factory | First assault squad dispatched 20907 | -4/Factory | Discovered new exit (range 24) 20977 | -4/Factory | Assimilated ARC 7a with formatsys_deep 21029 | -4/Factory | Discovered new exit (range 21) 21096 | -4/Factory | Lost 7 allies 21174 | -4/Factory | Lost 5 allies 21266 | -4/Factory | P-70 Sage assimilated allied F8-RIG(m) 21467 | -4/Factory | Sucked down chute 21467 | -4/Factory | Entered Waste 21472 | -4/Waste | 4 allies followed down the chute 21482 | -4/Waste | EMP discharged 21491 | -4/Waste | Spotted C-40 Crusher 21513 | -4/Waste | Spotted C-40 Crusher 21529 | -4/Waste | Spotted C-40 Crusher 21572 | -4/Waste | Spotted C-40 Crusher 21575 | -4/Waste | Discovered new exit (range 15) 21582 | -4/Waste | EMP discharged 21582 | -4/Waste | System corruption reached 10% 21585 | -4/Waste | Spotted C-40 Crusher 21609 | -4/Waste | Spotted C-40 Crusher 21666 | -4/Waste | Entered Factory 21676 | -4/Factory | Found Prototype Processor 21676 | -4/Factory | Identified Exp. Signal Interpreter 21878 | -4/Factory | Discovered new exit (range 13) 22054 | -4/Factory | System corruption reached 30% 22080 | -4/Factory | Lost 7 parts (3n3u1w) 22172 | -4/Factory | Lost 3 parts (1n2u) 22239 | -4/Factory | Discovered new exit (range 21) 22317 | -4/Factory | Spotted B-86 Titan 22359 | -4/Factory | Discovered new exit (range 16) 22396 | -4/Factory | Identified exit to Garrison 22396 | -4/Factory | Entered Garrison 22396 | -4/Garrison | Accompanied by 1 ally 22425 | -4/Garrison | Spotted Striker 22425 | -4/Garrison | Spotted Striker 22441 | -4/Garrison | Destroyed Striker 22477 | -4/Garrison | Triggered checkpoint 22489 | -4/Garrison | Garrison Relay disabled 22493 | -4/Garrison | Lost 4 allies 22545 | -4/Garrison | Allies destroyed Striker 22563 | -4/Garrison | Lost 4 parts (1p2n1u) 22667 | -4/Garrison | Lost 7 parts (1p3n3u) 22719 | -4/Garrison | Spotted B-86 Titan 22844 | -4/Garrison | Triggered checkpoint 22851 | -4/Garrison | Triggered checkpoint 22890 | -4/Garrison | Lost 3 parts (1p1n1u) 22929 | -4/Garrison | Discovered new exit (range 12) 22988 | -4/Garrison | Triggered checkpoint 23015 | -4/Garrison | Expanded RIF knowledge: Zone Cloak 23041 | -4/Garrison | Discovered new exit (range 15) 23041 | -4/Garrison | Discovered new exit (range 77) 23041 | -4/Garrison | Discovered new exit (range 82) 23056 | -4/Garrison | Core integrity fell below 50% 23071 | -4/Garrison | Garrison Relay disabled 23150 | -4/Garrison | Rescued a captive Derelict 23152 | -4/Garrison | Rescued a captive Derelict 23291 | -4/Garrison | Entered Factory 23291 | -4/Factory | Accompanied by 2 allies 23541 | -4/Factory | First assault squad dispatched 23549 | -4/Factory | Discovered new exit (range 31) 23610 | -4/Factory | Lost 8 parts (1p3n3u1w) 23664 | -4/Factory | Found Prototype Device 23668 | -4/Factory | Lost 3 allies 23774 | -4/Factory | Discovered new exit (range 10) 23809 | -4/Factory | Entered Extension 23882 | -4/Extension | Energy Cycler disabled 23884 | -4/Extension | Rescued a captive Derelict 23884 | -4/Extension | Rescued a captive Derelict 23885 | -4/Extension | Rescued A7 23885 | -4/Extension | Core integrity fell below 20% 23886 | -4/Extension | Rescued a captive Derelict 23886 | -4/Extension | Rescued a captive Derelict 23887 | -4/Extension | Rescued a captive Derelict 23890 | -4/Extension | Rescued a captive Derelict 24219 | -4/Extension | Discovered new exit (range 34) 24230 | -4/Extension | Spotted B-86 Titan 24260 | -4/Extension | Allies destroyed B-86 Titan 24260 | -4/Extension | Spotted B-86 Titan 24352 | -4/Extension | Allies destroyed B-86 Titan 24377 | -4/Extension | Lost 5 allies 24615 | -4/Extension | Extracted ID and sensor layout for unrecognized location from A7's data core 24618 | -4/Extension | Discovered new exit (range 10) 24624 | -4/Extension | Discovered new exit (range 6) 24690 | -4/Extension | Entered Cetus 24690 | -4/Cetus | Accompanied by 16 allies 24694 | -4/Cetus | Spotted Cetus Guard 24696 | -4/Cetus | Spotted Cetus Guard 24696 | -4/Cetus | Spotted Cetus Guard 24696 | -4/Cetus | Spotted Cetus Guard 24715 | -4/Cetus | Allies destroyed Cetus Guard 24721 | -4/Cetus | Allies destroyed Cetus Guard 24729 | -4/Cetus | Allies destroyed Cetus Guard 24731 | -4/Cetus | Allies destroyed Cetus Guard 24748 | -4/Cetus | Lost 5 allies 24798 | -4/Cetus | Discovered new exit (range 22) 24870 | -4/Cetus | Spotted Cetus Guard 24870 | -4/Cetus | Spotted Cetus Guard 24871 | -4/Cetus | Discovered new exit (range 26) 24872 | -4/Cetus | Spotted Cetus Guard 24894 | -4/Cetus | Allies destroyed Cetus Guard 24905 | -4/Cetus | Allies destroyed Cetus Guard 24913 | -4/Cetus | Allies destroyed Cetus Guard 24937 | -4/Cetus | Destroyed Cetus Guard 24950 | -4/Cetus | Lost 11 allies 24990 | -4/Cetus | Met Revision 17 25119 | -4/Cetus | Discovered new exit (range 38) 25198 | -4/Cetus | Entered Archives 25368 | -4/Archives | Discovered new exit (range 23) 25511 | -4/Archives | Discovered new exit (range 20) 25528 | -4/Archives | Discovered new exit (range 22) 25984 | -4/Archives | Entered Hub_04(d) 26364 | -4/Hub_04(d) | Discovered new exit (range 22) 26400 | -4/Hub_04(d) | Discovered new exit (range 14) 26444 | -4/Hub_04(d) | Discovered new exit (range 15) 26446 | -4/Hub_04(d) | Entered Research 26446 | -3/Research | Evolved 2 slots: Power x1, Weapon x1 26487 | -3/Research | Build established: Scavenger-Mutant 26643 | -3/Research | Identified exit to Testing 26646 | -3/Research | Revision forces began assault on 0b10 26752 | -3/Research | Found Quantum Capacitor 26822 | -3/Research | Found Prototype Device 26822 | -3/Research | Identified Exp. ECM Suite 26883 | -3/Research | Build established: Hacker-Sprinter 26901 | -3/Research | Entered Testing 26923 | -3/Testing | Found Prototype Protection 26923 | -3/Testing | Identified SHELL Armor 26982 | -3/Testing | Spotted Striker 26982 | -3/Testing | Spotted Striker 26984 | -3/Testing | Found Prototype Processor 26984 | -3/Testing | Identified Exp. Targeting Computer 27006 | -3/Testing | Protovariant out of control (PX-69T7ZDYYB4) 27006 | -3/Testing | Unleashed a protovariant (PX-69T7ZDYYB4) 27017 | -3/Testing | Spotted PD-5GIA4IA3UD 27083 | -3/Testing | Discovered new exit (range 4) 27084 | -3/Testing | Spotted PX-69T7ZDYYB4 27150 | -3/Testing | Found Prototype Device 27150 | -3/Testing | Identified Imp. Particle Accelerator 27205 | -3/Testing | Protovariant out of control (PD-5GIA4IA3UD) 27214 | -3/Testing | Found Prototype Energy Cannon 27214 | -3/Testing | Identified Imp. Potential Cannon 27264 | -3/Testing | Build established: Sprinter 27274 | -3/Testing | Found Prototype Launcher 27274 | -3/Testing | Identified Containment Facilitator 27457 | -3/Testing | System corruption reached 10% 27543 | -3/Testing | Spotted Alpha 7 27604 | -3/Testing | Entered Research 27604 | -2/Research | Evolved 2 slots: Propulsion x2 27620 | -2/Research | Lost 3 parts (1n2w) 27785 | -2/Research | Discovered new exit (range 7) 27788 | -2/Research | Identified exit to Access 27936 | -2/Research | Entered Access 27936 | -1/Access | Evolved 2 slots: Propulsion x2 27946 | -1/Access | Lost 5 parts (2p2u1w) 28373 | -1/Access | Found Hellfire Missile Launcher 28374 | -1/Access | Found Hellfire Missile Launcher 28376 | -1/Access | Spotted B-99 Colossus 28436 | -1/Access | First assault squad dispatched 28437 | -1/Access | Spotted B-99 Colossus 28750 | -1/Access | Spotted B-99 Colossus 28750 | -1/Access | Spotted B-99 Colossus 28821 | -1/Access | Discovered new exit (range 11) 28828 | -1/Access | Identified exit to Surface 28841 | *** | Escaped! Last Messages --------------- 28817_ The unstable cave ceiling collapses. 28818_ K-01 Serf collects debris. 28819_ The unstable cave ceiling collapses. 28819_ Main Access Shell breached. 28820_ The unstable cave ceiling collapses. 28820_ U-05 Engineer builds a Wall. 28821_ EXIT=FOUND 28822_ K-01 Serf collects debris. 28823_ The unstable cave ceiling collapses. 28824_ System corrupted: Energy discharge (-45). 28824_ The unstable cave ceiling collapses. 28824_ U-05 Engineer builds a Wall. 28828_ The unstable cave ceiling collapses. 28828_ EXIT=IDENTIFIED: SURFACE 28828_ Dropped Exp. Energy Well. 28829_ Extracted 74 energy. 28832_ The unstable cave ceiling collapses. 28836_ Acquired Exp. Energy Well. 28839_ The unstable cave ceiling collapses. 28839_ Y-72 Warden destroyed. Map ----- +----------------------------------------------------+ | ????????????????????# ???????????????#+##+#?????? | | ????????????????????# ??????????????? #?????? | | ????????????????????# ??????????????? ] #?????? | | ????????????????????# ??????????????? #?????? | | ????????????????????# ??????????????? #?????? | | ????????????????????# ??????????????? #?????? | | ????????############# ??????????????? #?????? | | ???????? #?????????????? #?????? | | ???????? ##???????????? ??????? | | ????????### # #### #???????????? ???????? | | ??????### ## #### ##############+####### | | ?????? = | | ?????? *A | | ?????????# ## "####### ####### | | ?????????# # #?????# #????????? | | ?????????# # "#?????# #????????? | | ?????????# # # T#?????# +????????? | | ?????????# " ### "#?????# #????????? | | ?????????# """????# "#?????# #????????? | | ????????????????????# !%[ "#?????# #????????? | | ????????????????????"" * """?????# #????????? | | ????????????????????# #?????# #????????? | | ????????????????????# #?????# #????????? | | ????????????????????# "" #?????# #????????? | | ????????????????????# " #?????# #??####### | | ????????????????????# " @" "? #?????# #?? | | ????????????????????# " "" "??#?????# #? | | ????????????????????# " "????????# #? " | | ????????????????????# """"""????????# # """ | | ????????????????????# ???????????????# # """ | | ????????????????????#"???????????????# + " | | ?????????????????????????????????????# # | | ?????????????????????????????????????# # | | ????????????????????????????????????## ########## | | ????????????????????????? ???????## ! ######### | | ??????????????????????BB BB????## | | ??????????????????????BB BB????# | | ??????????????????????? ?????# ##+##### | | ??????????????????????? ????## ## | | ??????????????????????? ????# # | | ??????????????????????? ????# # % | | ???????????????????????# #????# # | | ???????????????????????# #????# # | | ???????????????????????# #????# # | | ???????????????????????# #????# # | | ???????????????????????# #????# # ! | | ???????????????????????# #????# " | | ???????????????????????# #????########### | | ????????###########????# #??????????????# | | ????????? " ?????# #????????####### | +----------------------------------------------------+ Best States ------------- Heat Dissipation 84 Coolant Potential 100 Energy Generation 78 Energy Capacity 840 Matter Stores 300 Matter Capacity 300 Sight Range 23 Robot Scan Range 16 Terrain Scan Density 210 Power Amplification 60 Additional Mass Support 9 Base Temperature (-) 200 Armor Coverage 1200 Resistance: EM 20 Point Defense Rating 160 Evasion (%) 67 Targeting Accuracy 12 Melee Accuracy 8 Recoil Reduction 6 Particle Charging 25 Offensive Hacking 30 Defensive Hacking 14 Relay Coupler Types 8 Relay Coupler Value 161 Authchip Count 1 Item Schematics ----------------- Imp. Propulsion Shielding | -8/Materials | Scanalyzed Exp. Hacking Suite | -4/Factory | Scanalyzed Imp. Gyrokinetic Inverter | -4/Factory | Scanalyzed EM Disruption Field | -4/Factory | Scanalyzed Enh. Armored Medium Treads | -3/Testing | Archive Enh. Armored Leg | -3/Testing | Archive Com. Tesla Bomb Launcher | -3/Testing | Archive Neutron Cannon | -3/Testing | Archive Exp. Sensor Array | -3/Testing | Archive Quantum Shading Machine | -3/Testing | Archive Exp. Energy Well | -3/Testing | Archive Shock Maul | -3/Testing | Archive Hvy. Tesla Rifle | -3/Testing | Archive Robot Schematics ------------------ R-06 Scavenger | -3/Testing | Archive Fabricated ------------ Com. HERF Cannon | x1 | -5/Factory | Preloaded Repaired ---------- Nothing Alien Tech Used ----------------- None Achievements -------------- None Challenges ------------ None Game ------ Seed SmartPropulsionBallwheel Manual? 0 Play Time 05:48:36 Cumulative 549.9 hours Start 2025.08.11 @ 17:03:59 End 2025.08.12 @ 20:30:19 Sessions 7 Manual Loads 0 Difficulty Rogue Special Mode None Game No. 119 Rogue 119 Adventurer 0 Explorer 0 Win Type 0 Total 40 Types 19/2/8/2/1/0/3/3/1/1 Lore% 93 Gallery% 82 Achievement% 83 Wizard Run 0 Options --------- Layout 1 ASCII 0 Keyboard 0 Movement Mouse Keybinds 0 Fullscreen 1 Font 24/Smallcaps Map View 50x35 Zoom Use 0% Tactical HUD 1 Map Filters NONE Filters NONE Steam 1 RUN: 50baa326-7cf5-4964-8c54-3179c88d1c16